Workbook

Sheet Formato 1
A1: Formato 1 Estado de Situación Financiera Detallado - LDF
A2: JUNTA MUNICIPAL DE AGUA POTABLE Y SANEAMIENTO DE SAN LUIS DE LA PAZ
A3: Estado de Situación Financiera Detallado - LDF
A4: Al 31 de Diciembre de 2022 y al 30 DE SEPTIEMBRE DE 2025
A5: (PESOS)
A6: Concepto (c) | B6: 2023 (d) | C6: 31 de diciembre de 2022 (e) | D6: Concepto (c) | E6: 2023 (d) | F6: 31 de diciembre de 2022 (e)
A7: ACTIVO | D7: PASIVO
A8: Activo Circulante | D8: Pasivo Circulante
A9: a. Efectivo y Equivalentes (a=a1+a2+a3+a4+a5+a6+a7) | B9: 31,775,378.39 | C9: 24,094,373.93 | D9: a. Cuentas por Pagar a Corto Plazo (a=a1+a2+a3+a4+a5+a6+a7+a8+a9) | E9: 43,802,626.48 | F9: 40,015,814.48
A10: a1) Efectivo | B10: 65,583.76 | C10: 22,708.92 | D10: a1) Servicios Personales por Pagar a Corto Plazo | E10: -3,767,920.73 | F10: -4,227,223.42
A11: a2) Bancos/Tesorería | B11: 26,854,914.29 | C11: 0.00 | D11: a2) Proveedores por Pagar a Corto Plazo | E11: 12,626,435.80 | F11: 12,427,207.37
A12: a3) Bancos/Dependencias y Otros | B12: 4,252,265.62 | C12: 23,468,247.43 | D12: a3) Contratistas por Obras Públicas por Pagar a Corto Plazo | E12: 0.00 | F12: 0.00
A13: a4) Inversiones Temporales (Hasta 3 meses) | B13: -122,766.09 | C13: -122,766.09 | D13: a4) Participaciones y Aportaciones por Pagar a Corto Plazo | E13: 0.00 | F13: 0.00
A14: a5) Fondos con Afectación Específica | B14: 0.00 | C14: 0.00 | D14: a5) Transferencias Otorgadas por Pagar a Corto Plazo | E14: 0.00 | F14: 0.00
A15: a6) Depósitos de Fondos de Terceros en Garantía y/o Administración | B15: 0.00 | C15: 0.00 | D15: a6) Intereses, Comisiones y Otros Gastos de la Deuda Pública por Pagar a Corto Plazo | E15: 0.00 | F15: 0.00
A16: a7) Otros Efectivos y Equivalentes | B16: 725,380.81 | C16: 726,183.67 | D16: a7) Retenciones y Contribuciones por Pagar a Corto Plazo | E16: 35,296,075.60 | F16: 32,167,794.72
A17: b. Derechos a Recibir Efectivo o Equivalentes (b=b1+b2+b3+b4+b5+b6+b7) | B17: 28,619,310.26 | C17: 25,230,030.38 | D17: a8) Devoluciones de la Ley de Ingresos por Pagar a Corto Plazo | E17: 0.00 | F17: 0.00
A18: b1) Inversiones Financieras de Corto Plazo | B18: 0.00 | C18: 0.00 | D18: a9) Otras Cuentas por Pagar a Corto Plazo | E18: -351,964.19 | F18: -351,964.19
A19: b2) Cuentas por Cobrar a Corto Plazo | B19: 0.00 | C19: 0.00 | D19: b. Documentos por Pagar a Corto Plazo (b=b1+b2+b3) | E19: 0.00 | F19: 0.00
A20: b3) Deudores Diversos por Cobrar a Corto Plazo | B20: -6,700,695.83 | C20: -6,360,712.45 | D20: b1) Documentos Comerciales por Pagar a Corto Plazo | E20: 0.00 | F20: 0.00
A21: b4) Ingresos por Recuperar a Corto Plazo | B21: 35,320,006.09 | C21: 31,590,742.83 | D21: b2) Documentos con Contratistas por Obras Públicas por Pagar a Corto Plazo | E21: 0.00 | F21: 0.00
A22: b5) Deudores por Anticipos de la Tesorería a Corto Plazo | B22: 0.00 | C22: 0.00 | D22: b3) Otros Documentos por Pagar a Corto Plazo | E22: 0.00 | F22: 0.00
A23: b6) Préstamos Otorgados a Corto Plazo | B23: 0.00 | C23: 0.00 | D23: c. Porción a Corto Plazo de la Deuda Pública a Largo Plazo (c=c1+c2) | E23: 0.00 | F23: 0.00
A24: b7) Otros Derechos a Recibir Efectivo o Equivalentes a Corto Plazo | B24: 0.00 | C24: 0.00 | D24: c1) Porción a Corto Plazo de la Deuda Pública | E24: 0.00 | F24: 0.00
A25: c. Derechos a Recibir Bienes o Servicios (c=c1+c2+c3+c4+c5) | B25: 1,129,849.14 | C25: 1,129,849.14 | D25: c2) Porción a Corto Plazo de Arrendamiento Financiero | E25: 0.00 | F25: 0.00
A26: c1) Anticipo a Proveedores por Adquisición de Bienes y Prestación de Servicios a Corto Plazo | B26: 85,299.03 | C26: 85,299.03 | D26: d. Títulos y Valores a Corto Plazo | E26: 0.00 | F26: 0.00
A27: c2) Anticipo a Proveedores por Adquisición de Bienes Inmuebles y Muebles a Corto Plazo | B27: 0.00 | C27: 0.00 | D27: e. Pasivos Diferidos a Corto Plazo (e=e1+e2+e3) | E27: 0.00 | F27: 0.00
A28: c3) Anticipo a Proveedores por Adquisición de Bienes Intangibles a Corto Plazo | B28: 0.00 | C28: 0.00 | D28: e1) Ingresos Cobrados por Adelantado a Corto Plazo | E28: 0.00 | F28: 0.00
A29: c4) Anticipo a Contratistas por Obras Públicas a Corto Plazo | B29: 152,482.60 | C29: 152,482.60 | D29: e2) Intereses Cobrados por Adelantado a Corto Plazo | E29: 0.00 | F29: 0.00
A30: c5) Otros Derechos a Recibir Bienes o Servicios a Corto Plazo | B30: 892,067.51 | C30: 892,067.51 | D30: e3) Otros Pasivos Diferidos a Corto Plazo | E30: 0.00 | F30: 0.00
A31: d. Inventarios (d=d1+d2+d3+d4+d5) | B31: 0.00 | C31: 0.00 | D31: f. Fondos y Bienes de Terceros en Garantía y/o Administración a Corto Plazo (f=f1+f2+f3+f4+f5+f6) | E31: 0.00 | F31: 0.00
A32: d1) Inventario de Mercancías para Venta | B32: 0.00 | C32: 0.00 | D32: f1) Fondos en Garantía a Corto Plazo | E32: 0.00 | F32: 0.00
A33: d2) Inventario de Mercancías Terminadas | B33: 0.00 | C33: 0.00 | D33: f2) Fondos en Administración a Corto Plazo | E33: 0.00 | F33: 0.00
A34: d3) Inventario de Mercancías en Proceso de Elaboración | B34: 0.00 | C34: 0.00 | D34: f3) Fondos Contingentes a Corto Plazo | E34: 0.00 | F34: 0.00
A35: d4) Inventario de Materias Primas, Materiales y Suministros para Producción | B35: 0.00 | C35: 0.00 | D35: f4) Fondos de Fideicomisos, Mandatos y Contratos Análogos a Corto Plazo | E35: 0.00 | F35: 0.00
A36: d5) Bienes en Tránsito | B36: 0.00 | C36: 0.00 | D36: f5) Otros Fondos de Terceros en Garantía y/o Administración a Corto Plazo | E36: 0.00 | F36: 0.00
A37: e. Almacenes | B37: 0.00 | C37: 0.00 | D37: f6) Valores y Bienes en Garantía a Corto Plazo | E37: 0.00 | F37: 0.00
A38: f. Estimación por Pérdida o Deterioro de Activos Circulantes (f=f1+f2) | B38: 0.00 | C38: 0.00 | D38: g. Provisiones a Corto Plazo (g=g1+g2+g3) | E38: 0.00 | F38: 0.00
A39: f1) Estimaciones para Cuentas Incobrables por Derechos a Recibir Efectivo o Equivalentes | B39: 0.00 | C39: 0.00 | D39: g1) Provisión para Demandas y Juicios a Corto Plazo | E39: 0.00 | F39: 0.00
A40: f2) Estimación por Deterioro de Inventarios | B40: 0.00 | C40: 0.00 | D40: g2) Provisión para Contingencias a Corto Plazo | E40: 0.00 | F40: 0.00
A41: g. Otros Activos Circulantes (g=g1+g2+g3+g4) | B41: 0.00 | C41: 0.00 | D41: g3) Otras Provisiones a Corto Plazo | E41: 0.00 | F41: 0.00
A42: g1) Valores en Garantía | B42: 0.00 | C42: 0.00 | D42: h. Otros Pasivos a Corto Plazo (h=h1+h2+h3) | E42: 0.00 | F42: 0.00
A43: g2) Bienes en Garantía (excluye depósitos de fondos) | B43: 0.00 | C43: 0.00 | D43: h1) Ingresos por Clasificar | E43: 0.00 | F43: 0.00
A44: g3) Bienes Derivados de Embargos, Decomisos, Aseguramientos y Dación en Pago | B44: 0.00 | C44: 0.00 | D44: h2) Recaudación por Participar | E44: 0.00 | F44: 0.00
A45: g4) Adquisición con Fondos de Terceros | B45: 0.00 | C45: 0.00 | D45: h3) Otros Pasivos Circulantes | E45: 0.00 | F45: 0.00
A47: IA. Total de Activos Circulantes (IA = a + b + c + d + e + f + g) | B47: =B9+B17+B25+B31+B38+B41 -> 61,524,537.79 | C47: =C9+C17+C25+C31+C38+C41 -> 50,454,253.45 | D47: IIA. Total de Pasivos Circulantes (IIA = a + b + c + d + e + f + g + h) | E47: =E9+E19+E23+E26+E27+E31+E38+E42 -> 43,802,626.48 | F47: =F9+F19+F23+F26+F27+F31+F38+F42 -> 40,015,814.48
A49: Activo No Circulante | D49: Pasivo No Circulante
A50: a. Inversiones Financieras a Largo Plazo | B50: 0.00 | C50: 0.00 | D50: a. Cuentas por Pagar a Largo Plazo | E50: 0.00 | F50: 0.00
A51: b. Derechos a Recibir Efectivo o Equivalentes a Largo Plazo | B51: 0.00 | C51: 0.00 | D51: b. Documentos por Pagar a Largo Plazo | E51: 0.00 | F51: 0.00
A52: c. Bienes Inmuebles, Infraestructura y Construcciones en Proceso | B52: 5,052,173.13 | C52: 5,052,173.13 | D52: c. Deuda Pública a Largo Plazo | E52: 0.00 | F52: 0.00
A53: d. Bienes Muebles | B53: 19,917,871.14 | C53: 19,667,308.98 | D53: d. Pasivos Diferidos a Largo Plazo | E53: 0.00 | F53: 0.00
A54: e. Activos Intangibles | B54: 5,304,981.26 | C54: 4,145,581.26 | D54: e. Fondos y Bienes de Terceros en Garantía y/o en Administración a Largo Plazo | E54: 0.00 | F54: 0.00
A55: f. Depreciación, Deterioro y Amortización Acumulada de Bienes | B55: -3,620,517.46 | C55: -3,620,517.46 | D55: f. Provisiones a Largo Plazo | E55: 0.00 | F55: 0.00
A56: g. Activos Diferidos | B56: 0.00 | C56: 0.00
A57: h. Estimación por Pérdida o Deterioro de Activos no Circulantes | B57: 0.00 | C57: 0.00 | D57: IIB. Total de Pasivos No Circulantes (IIB = a + b + c + d + e + f) | E57: =SUM(E50:E55) -> 0.00 | F57: =SUM(F50:F55) -> 0.00
A58: i. Otros Activos no Circulantes | B58: 0.00 | C58: 0.00
D59: II. Total del Pasivo (II = IIA + IIB) | E59: =E47+E57 -> 43,802,626.48 | F59: =F47+F57 -> 40,015,814.48
A60: IB. Total de Activos No Circulantes (IB = a + b + c + d + e + f + g + h + i) | B60: =SUM(B50:B58) -> 26,654,508.07 | C60: =SUM(C50:C58) -> 25,244,545.91
D61: HACIENDA PÚBLICA/PATRIMONIO
A62: I. Total del Activo (I = IA + IB) | B62: =SUM(B47+B60) -> 88,179,045.86 | C62: =SUM(C47+C60) -> 75,698,799.36
D63: IIIA. Hacienda Pública/Patrimonio Contribuido (IIIA = a + b + c) | E63: -27,710,558.01 | F63: -27,263,111.39
D64: a. Aportaciones | E64: -27,710,558.01 | F64: -27,263,111.39
D65: b. Donaciones de Capital | E65: 0.00 | F65: 0.00
D66: c. Actualización de la Hacienda Pública/Patrimonio | E66: 0.00 | F66: 0.00
D68: IIIB. Hacienda Pública/Patrimonio Generado (IIIB = a + b + c + d + e) | E68: 72,086,977.39 | F68: 62,946,096.27
D69: a. Resultados del Ejercicio (Ahorro/ Desahorro) | E69: 9,140,881.12 | F69: 62,946,096.27
D70: b. Resultados de Ejercicios Anteriores | E70: 62,946,096.27 | F70: 61,359,285.24
D71: c. Revalúos | E71: 0.00 | F71: 0.00
D72: d. Reservas | E72: 0.00 | F72: 0.00
D73: e. Rectificaciones de Resultados de Ejercicios Anteriores | E73: 0.00 | F73: 0.00
D75: IIIC. Exceso o Insuficiencia en la Actualización de la Hacienda Pública/Patrimonio (IIIC=a+b) | E75: 0.00 | F75: 0.00
D76: a. Resultado por Posición Monetaria | E76: 0.00 | F76: 0.00
D77: b. Resultado por Tenencia de Activos no Monetarios | E77: 0.00 | F77: 0.00
D79: III. Total Hacienda Pública/Patrimonio (III = IIIA + IIIB + IIIC) | E79: =E63+E68+E75 -> 44,376,419.38 | F79: =F63+F68+F75 -> 35,682,984.88
D81: IV. Total del Pasivo y Hacienda Pública/Patrimonio (IV = II + III) | E81: =E59+E79 -> 88,179,045.86 | F81: =F59+F79 -> 75,698,799.36

Sheet Formato 2
A1: Formato 2 Informe Analítico de la Deuda Pública y Otros Pasivos - LDF
A2: JUNTA MUNICIPAL DE AGUA POTABLE Y SANEAMIENTO DE SAN LUIS DE LA PAZ
A3: Informe Analítico de la Deuda Pública y Otros Pasivos - LDF
A4: Al 31 de Diciembre de 2022 y al 30 DE SEPTIEMBRE DE 2025
A5: (PESOS)
A6: Denominación de la Deuda Pública y Otros Pasivos (c) | B6: Saldo al 31 de diciembre de 2022 (d) | C6: Disposiciones del Periodo (e) | D6: Amortizaciones del Periodo (f) | E6: Revaluaciones, Reclasificaciones y Otros Ajustes (g) | F6: Saldo Final del Periodo (h) h=d+e-f+g | G6: Pago de Intereses del Periodo (i) | H6: Pago de Comisiones y demás costos asociados durante el Periodo (j)
A8: 1. Deuda Pública (1=A+B) | B8: =B9+B13 -> 0.00 | C8: 0.00 | D8: 0.00 | E8: 0.00 | F8: 0.00 | G8: 0.00 | H8: 0.00
A9: A. Corto Plazo (A=a1+a2+a3) | B9: =SUM(B10:B12) -> 0.00 | C9: 0.00 | D9: 0.00 | E9: 0.00 | F9: 0.00 | G9: 0.00 | H9: 0.00
A10: a1) Instituciones de Crédito
A11: a2) Títulos y Valores
A12: a3) Arrendamientos Financieros
A13: B. Largo Plazo (B=b1+b2+b3) | B13: =SUM(B14:B16) -> 0.00 | C13: 0.00 | D13: 0.00 | E13: 0.00 | F13: 0.00 | G13: 0.00 | H13: 0.00
A14: b1) Instituciones de Crédito
A15: b2) Títulos y Valores
A16: b3) Arrendamientos Financieros
A18: 2. Otros Pasivos | B18: 40,015,814.48 | F18: 43,802,626.48
A20: 3. Total de la Deuda Pública y Otros Pasivos (3=1+2) | B20: =B8+B18 -> 40,015,814.48 | C20: 0.00 | D20: 0.00 | E20: 0.00 | F20: 43,802,626.48 | G20: 0.00 | H20: 0.00
A22: 4. Deuda Contingente 1 (Informativo) | B22: =SUM(B23:B25) -> 0.00 | C22: 0.00 | D22: 0.00 | E22: 0.00 | F22: 0.00 | G22: 0.00 | H22: 0.00
A23: A. Deuda Contingente 1
A24: B. Deuda Contingente 2
A25: C. Deuda Contingente XX
A27: 5. Valor de Instrumentos Bono Cupón Cero 2 (Informativo) | B27: =SUM(B28:B30) -> 0.00 | C27: 0.00 | D27: 0.00 | E27: 0.00 | F27: 0.00 | G27: 0.00 | H27: 0.00
A28: A. Instrumento Bono Cupón Cero 1
A29: B. Instrumento Bono Cupón Cero 2
A30: C. Instrumento Bono Cupón Cero XX
A31: *
A33: 1 Se refiere a cualquier Financiamiento sin fuente o garantía de pago definida, que sea asumida de manera solidaria o subsidiaria por las Entidades Federativas con sus Municipios, organismos descentralizados y empresas de participación estatal mayoritaria y fideicomisos, locales o municipales, y por los Municipios con sus respectivos organismos descentralizados y empresas de participación municipal mayoritaria. 2 Se refiere al valor del Bono Cupón Cero que respalda el pago de los créditos asociados al mismo (Activo).
A39: Obligaciones a Corto Plazo (k) | B39: Monto Contratado (l) | C39: Plazo Pactado (m) | D39: Tasa de Interés (n) | E39: Comisiones y Costos Relacionados (o) | F39: Tasa Efectiva (p)
A41: 6. Obligaciones a Corto Plazo (Informativo) | B41: =SUM(B42:B44) -> 0.00 | C41: =SUM(C42:C44) -> 0.00 | D41: =SUM(D42:D44) -> 0.00 | E41: =SUM(E42:E44) -> 0.00 | F41: =SUM(F42:F44) -> 0.00
A42: A. Crédito 1 | B42: 0.00 | C42: 0.00 | D42: 0.00 | E42: 0.00 | F42: 0.00
A43: B. Crédito 2 | B43: 0.00 | C43: 0.00 | D43: 0.00 | E43: 0.00 | F43: 0.00
A44: C. Crédito XX | B44: 0.00 | C44: 0.00 | D44: 0.00 | E44: 0.00 | F44: 0.00
A45: *

Sheet Formato 3
A1: Formato 3 Informe Analítico de Obligaciones Diferentes de Financiamientos - LDF
A2: JUNTA MUNICIPAL DE AGUA POTABLE Y SANEAMIENTO DE SAN LUIS DE LA PAZ
A3: Informe Analítico de Obligaciones Diferentes de Financiamientos – LDF
A4: Al 31 de Diciembre de 2022 y al 30 DE SEPTIEMBRE DE 2025
A5: (PESOS)
A6: Denominación de las Obligaciones Diferentes de Financiamiento (c) | B6: Fecha del Contrato (d) | C6: Fecha de inicio de operación del proyecto (e) | D6: Fecha de vencimiento (f) | E6: Monto de la inversión pactado (g) | F6: Plazo pactado (h) | G6: Monto promedio mensual del pago de la contraprestación (i) | H6: Monto promedio mensual del pago de la contraprestación correspondiente al pago de inversión (j) | I6: Monto pagado de la inversión al 31 de Marzo de 2022 (k) | J6: Monto pagado de la inversión actualizado al 31 de Marzo de 2022 (l) | K6: Saldo pendiente por pagar de la inversión al 31 de Marzo de 2022 (m = g – l)
A8: A. Asociaciones Público Privadas (APP’s) (A=a+b+c+d) | E8: =SUM(E9:E12) -> 0 | G8: =SUM(G9:G12) -> 0 | H8: =SUM(H9:H12) -> 0 | I8: =SUM(I9:I12) -> 0 | J8: =SUM(J9:J12) -> 0 | K8: =SUM(K9:K12) -> 0
A13: *
A14: B. Otros Instrumentos (B=a+b+c+d) | E14: =SUM(E15:E18) -> 0 | G14: =SUM(G15:G18) -> 0 | H14: =SUM(H15:H18) -> 0 | I14: =SUM(I15:I18) -> 0 | J14: =SUM(J15:J18) -> 0 | K14: =SUM(K15:K18) -> 0
A20: C. Total de Obligaciones Diferentes de Financiamiento (C=A+B) | E20: =SUM(E8,E14) -> 0 | G20: =SUM(G8,G14) -> 0 | H20: =SUM(H8,H14) -> 0 | I20: =SUM(I8,I14) -> 0 | J20: =SUM(J8,J14) -> 0 | K20: =SUM(K8,K14) -> 0

Sheet Formato 4
A1: Formato 4 Balance Presupuestario - LDF
A2: JUNTA MUNICIPAL DE AGUA POTABLE Y SANEAMIENTO DE SAN LUIS DE LA PAZ
A3: Balance Presupuestario - LDF
A4: ='Formato 3'!A4 -> Al 31 de Diciembre de 2022 y al 30 DE SEPTIEMBRE DE 2025
A5: (PESOS)
A7: Concepto (c) | B7: Estimado/ Aprobado (d) | C7: Devengado | D7: Recaudado/ Pagado
A8: A. Ingresos Totales (A = A1+A2+A3) | B8: =SUM(B9:B11) -> 81,588,318.38 | C8: =SUM(C9:C11) -> 0.00 | D8: =SUM(D9:D11) -> 0.00
A9: A1. Ingresos de Libre Disposición | B9: 81,588,318.38 | C9: 0.00 | D9: 0.00
A10: A2. Transferencias Federales Etiquetadas | B10: 0.00 | C10: 0.00 | D10: 0.00
A11: A3. Financiamiento Neto | B11: 0.00 | C11: 0.00 | D11: 0.00
A13: B. Egresos Presupuestarios1 (B = B1+B2) | B13: =B14+B15 -> 0.00 | C13: =C14+C15 -> 0.00 | D13: =D14+D15 -> 0.00
A14: B1. Gasto No Etiquetado (sin incluir Amortización de la Deuda Pública) | B14: 0.00 | C14: 0.00 | D14: 0.00
A15: B2. Gasto Etiquetado (sin incluir Amortización de la Deuda Pública) | B15: 0.00 | C15: 0.00 | D15: 0.00
A17: C. Remanentes del Ejercicio Anterior ( C = C1 + C2 ) | B17: 0.00 | C17: =C18+C19 -> 0.00 | D17: =D18+D19 -> 0.00
A18: C1. Remanentes de Ingresos de Libre Disposición aplicados en el periodo | B18: 0.00 | C18: 0.00 | D18: 0.00
A19: C2. Remanentes de Transferencias Federales Etiquetadas aplicados en el periodo | B19: 0.00 | C19: 0.00 | D19: 0.00
A21: I. Balance Presupuestario (I = A – B + C) | B21: =B8-B13+B17 -> 81,588,318.38 | C21: =C8-C13+C17 -> 0.00 | D21: =D8-D13+D17 -> 0.00
A23: II. Balance Presupuestario sin Financiamiento Neto (II = I - A3) | B23: =B21-B11 -> 81,588,318.38 | C23: =C21-C11 -> 0.00 | D23: =D21-D11 -> 0.00
A25: III. Balance Presupuestario sin Financiamiento Neto y sin Remanentes del Ejercicio Anterior (III= II - C) | B25: =B23-B17 -> 81,588,318.38 | C25: =C23-C17 -> 0.00 | D25: =D23-D17 -> 0.00
A28: Concepto | B28: Aprobado | C28: Devengado | D28: Pagado
A29: E. Intereses, Comisiones y Gastos de la Deuda (E = E1+E2) | B29: =B30+B31 -> 0.00 | C29: =C30+C31 -> 0.00 | D29: =D30+D31 -> 0.00
A30: E1. Intereses, Comisiones y Gastos de la Deuda con Gasto No Etiquetado | B30: 0.00 | C30: 0.00 | D30: 0.00
A31: E2. Intereses, Comisiones y Gastos de la Deuda con Gasto Etiquetado | B31: 0.00 | C31: 0.00 | D31: 0.00
A33: IV. Balance Primario (IV = III + E) | B33: =B5+B29 -> 0.00 | C33: =C5+C29 -> 0.00 | D33: =D5+D29 -> 0.00
A36: Concepto | B36: Estimado/ Aprobado | C36: Devengado | D36: Recaudado/ Pagado
A37: F. Financiamiento (F = F1 + F2) | B37: =B38+B39 -> 0.00 | C37: =C38+C39 -> 0.00 | D37: =D38+D39 -> 0.00
A38: F1. Financiamiento con Fuente de Pago de Ingresos de Libre Disposición | B38: 0.00 | C38: 0.00 | D38: 0.00
A39: F2. Financiamiento con Fuente de Pago de Transferencias Federales Etiquetadas | B39: 0.00 | C39: 0.00 | D39: 0.00
A40: G. Amortización de la Deuda (G = G1 + G2) | B40: =B41+B42 -> 0.00 | C40: =C41+C42 -> 0.00 | D40: =D41+D42 -> 0.00
A41: G1. Amortización de la Deuda Pública con Gasto No Etiquetado | B41: 0.00 | C41: 0.00 | D41: 0.00
A42: G2. Amortización de la Deuda Pública con Gasto Etiquetado | B42: 0.00 | C42: 0.00 | D42: 0.00
A44: A3. Financiamiento Neto (A3 = F – G ) | B44: =B37-B40 -> 0.00 | C44: =C37-C40 -> 0.00 | D44: =D37-D40 -> 0.00
A47: Concepto | B47: Estimado/ Aprobado | C47: Devengado | D47: Recaudado/ Pagado
A48: A1. Ingresos de Libre Disposición | B48: 81,588,318.38 | C48: 0.00 | D48: 0.00
A49: A3.1 Financiamiento Neto con Fuente de Pago de Ingresos de Libre Disposición (A3.1 = F1 – G1) | B49: =B50-B51 -> 0.00 | C49: =C50-C51 -> 0.00 | D49: =D50-D51 -> 0.00
A50: F1. Financiamiento con Fuente de Pago de Ingresos de Libre Disposición | B50: 0.00 | C50: 0.00 | D50: 0.00
A51: G1. Amortización de la Deuda Pública con Gasto No Etiquetado | B51: 0.00 | C51: 0.00 | D51: 0.00
A53: B1. Gasto No Etiquetado (sin incluir Amortización de la Deuda Pública) | B53: 0.00 | C53: 0.00 | D53: 0.00
A55: C1. Remanentes de Ingresos de Libre Disposición aplicados en el periodo | B55: 0.00 | C55: =C18 -> 0.00 | D55: =D18 -> 0.00
A57: V. Balance Presupuestario de Recursos Disponibles (V = A1 + A3.1 – B 1 + C1) | B57: =B48+B49-B53+B55 -> 81,588,318.38 | C57: =C48+C49-C53+C55 -> 0.00 | D57: =D48+D49-D53+D55 -> 0.00
A59: VI. Balance Presupuestario de Recursos Disponibles sin Financiamiento Neto (VI = V – A3.1) | B59: =B57-B49 -> 81,588,318.38 | C59: =C57-C49 -> 0.00 | D59: =D57-D49 -> 0.00
A62: Concepto | B62: Estimado/ Aprobado | C62: Devengado | D62: Recaudado/ Pagado
A63: A2. Transferencias Federales Etiquetadas | B63: 0.00 | C63: 0.00 | D63: 0.00
A64: A3.2 Financiamiento Neto con Fuente de Pago de Transferencias Federales Etiquetadas (A3.2 = F2 – G2) | B64: =B65-B66 -> 0.00 | C64: =C65-C66 -> 0.00 | D64: =D65-D66 -> 0.00
A65: F2. Financiamiento con Fuente de Pago de Transferencias Federales Etiquetadas | B65: 0.00 | C65: 0.00 | D65: 0.00
A66: G2. Amortización de la Deuda Pública con Gasto Etiquetado | B66: 0.00 | C66: 0.00 | D66: 0.00
A68: B2. Gasto Etiquetado (sin incluir Amortización de la Deuda Pública) | B68: 0.00 | C68: 0.00 | D68: 0.00
A70: C2. Remanentes de Transferencias Federales Etiquetadas aplicados en el periodo | B70: 0.00 | C70: =C19 -> 0.00 | D70: =D19 -> 0.00
A72: VII. Balance Presupuestario de Recursos Etiquetados (VII = A2 + A3.2 – B2 + C2) | B72: =B63+B64-B68+B70 -> 0.00 | C72: =C63+C64-C68+C70 -> 0.00 | D72: =D63+D64-D68+D70 -> 0.00
A74: VIII. Balance Presupuestario de Recursos Etiquetados sin Financiamiento Neto (VIII = VII – A3.2) | B74: =B72-B64 -> 0.00 | C74: =C72-C64 -> 0.00 | D74: =D72-D64 -> 0.00

Sheet Formato 5
A1: Formato 5 Estado Analítico de Ingresos Detallado - LDF
A2: JUNTA MUNICIPAL DE AGUA POTABLE Y SANEAMIENTO DE SAN LUIS DE LA PAZ
A3: Estado Analítico de Ingresos Detallado - LDF
A4: ='Formato 3'!A4 -> Al 31 de Diciembre de 2022 y al 30 DE SEPTIEMBRE DE 2025
A5: (PESOS)
A6: Concepto (c) | B6: Ingreso | G6: Diferencia (e)
B7: Estimado (d) | C7: Ampliaciones/ (Reducciones) | D7: Modificado | E7: Devengado | F7: Recaudado
A8: Ingresos de Libre Disposición
A9: A. Impuestos | B9: 0.00 | C9: 0.00 | D9: 0.00 | E9: 0.00 | F9: 0.00 | G9: =D9-E9 -> 0.00
A10: B. Cuotas y Aportaciones de Seguridad Social | B10: 0.00 | C10: 0.00 | D10: 0.00 | E10: 0.00 | F10: 0.00 | G10: 0.00
A11: C. Contribuciones de Mejoras | B11: 0.00 | C11: 0.00 | D11: 0.00 | E11: 0.00 | F11: 0.00 | G11: 0.00
A12: D. Derechos | B12: 79,256,580.84 | C12: 0.00 | D12: 79,256,580.84 | E12: 49,312,879.03 | F12: 49,312,879.03 | G12: -29,943,701.81
A13: E. Productos | B13: 845,249.11 | C13: 0.00 | D13: 845,249.11 | E13: 7,317,960.66 | F13: 7,317,960.66 | G13: 6,472,711.55
A14: F. Aprovechamientos | B14: 1,486,488.43 | C14: 0.00 | D14: 1,486,488.43 | E14: 939,479.98 | F14: 939,479.98 | G14: -547,008.45
A15: G. Ingresos por Venta de Bienes y Prestación de Servicios | B15: 0.00 | C15: 0.00 | D15: 0.00 | E15: 0.00 | F15: 0.00 | G15: 0.00
A16: H. Participaciones (H=h1+h2+h3+h4+h5+h6+h7+h8+h9+h10+h11) | B16: =SUM(B17:B27) -> 0.00 | C16: 0.00 | D16: 0.00 | E16: 0.00 | F16: 0.00 | G16: 0.00
A17: h1) Fondo General de Participaciones | B17: 0.00 | C17: 0.00 | D17: 0.00 | E17: 0.00 | F17: 0.00 | G17: =F17-B17 -> 0.00
A18: h2) Fondo de Fomento Municipal | B18: 0.00 | C18: 0.00 | D18: 0.00 | E18: 0.00 | F18: 0.00 | G18: 0.00
A19: h3) Fondo de Fiscalización y Recaudación | B19: 0.00 | C19: 0.00 | D19: 0.00 | E19: 0.00 | F19: 0.00 | G19: 0.00
A20: h4) Fondo de Compensación | B20: 0.00 | C20: 0.00 | D20: 0.00 | E20: 0.00 | F20: 0.00 | G20: 0.00
A21: h5) Fondo de Extracción de Hidrocarburos | B21: 0.00 | C21: 0.00 | D21: 0.00 | E21: 0.00 | F21: 0.00 | G21: 0.00
A22: h6) Impuesto Especial Sobre Producción y Servicios | B22: 0.00 | C22: 0.00 | D22: 0.00 | E22: 0.00 | F22: 0.00 | G22: 0.00
A23: h7) 0.136% de la Recaudación Federal Participable | B23: 0.00 | C23: 0.00 | D23: 0.00 | E23: 0.00 | F23: 0.00 | G23: 0.00
A24: h8) 3.17% Sobre Extracción de Petróleo | B24: 0.00 | C24: 0.00 | D24: 0.00 | E24: 0.00 | F24: 0.00 | G24: 0.00
A25: h9) Gasolinas y Diésel | B25: 0.00 | C25: 0.00 | D25: 0.00 | E25: 0.00 | F25: 0.00 | G25: 0.00
A26: h10) Fondo del Impuesto Sobre la Renta | B26: 0.00 | C26: 0.00 | D26: 0.00 | E26: 0.00 | F26: 0.00 | G26: 0.00
A27: h11) Fondo de Estabilización de los Ingresos de las Entidades Federativas | B27: 0.00 | C27: 0.00 | D27: 0.00 | E27: 0.00 | F27: 0.00 | G27: 0.00
A28: I. Incentivos Derivados de la Colaboración Fiscal (I=i1+i2+i3+i4+i5) | B28: =SUM(B29:B33) -> 0.00 | C28: 0.00 | D28: 0.00 | E28: 0.00 | F28: 0.00 | G28: 0.00
A29: i1) Tenencia o Uso de Vehículos | B29: 0.00 | C29: 0.00 | D29: 0.00 | E29: 0.00 | F29: 0.00 | G29: =F29-B29 -> 0.00
A30: i2) Fondo de Compensación ISAN | B30: 0.00 | C30: 0.00 | D30: 0.00 | E30: 0.00 | F30: 0.00 | G30: 0.00
A31: i3) Impuesto Sobre Automóviles Nuevos | B31: 0.00 | C31: 0.00 | D31: 0.00 | E31: 0.00 | F31: 0.00 | G31: 0.00
A32: i4) Fondo de Compensación de Repecos-Intermedios | B32: 0.00 | C32: 0.00 | D32: 0.00 | E32: 0.00 | F32: 0.00 | G32: 0.00
A33: i5) Otros Incentivos Económicos | B33: 0.00 | C33: 0.00 | D33: 0.00 | E33: 0.00 | F33: 0.00 | G33: 0.00
A34: J. Transferencias y Asignaciones | B34: 0.00 | C34: 0.00 | D34: 0.00 | E34: 0.00 | F34: 0.00 | G34: 0.00
A35: K. Convenios | B35: =B36 -> 0.00 | C35: 0.00 | D35: 0.00 | E35: 0.00 | F35: 0.00 | G35: 0.00
A36: k1) Otros Convenios y Subsidios | B36: 0.00 | C36: 0.00 | D36: 0.00 | E36: 0.00 | F36: 0.00 | G36: =F36-B36 -> 0.00
A37: L. Otros Ingresos de Libre Disposición (L=l1+l2) | B37: =B38+B39 -> 0.00 | C37: 0.00 | D37: 0.00 | E37: 0.00 | F37: 0.00 | G37: 0.00
A38: l1) Participaciones en Ingresos Locales | B38: 0.00 | C38: 0.00 | D38: 0.00 | E38: 0.00 | F38: 0.00 | G38: =F38-B38 -> 0.00
A39: l2) Otros Ingresos de Libre Disposición | B39: 0.00 | C39: 0.00 | D39: 0.00 | E39: 0.00 | F39: 0.00 | G39: =F39-B39 -> 0.00
A41: I. Total de Ingresos de Libre Disposición (I=A+B+C+D+E+F+G+H+I+J+K+L) | B41: =SUM(B9,B10,B11,B12,B13,B14,B15,B16,B28,B34,B35,B37) -> 81,588,318.38 | C41: 0.00 | D41: 81,588,318.38 | E41: 57,570,319.67 | F41: 57,570,319.67 | G41: -24,017,998.71
A42: Ingresos Excedentes de Ingresos de Libre Disposición | G42: =IF(G41>0,G41,0) -> 0.00
A44: Transferencias Federales Etiquetadas
A45: A. Aportaciones (A=a1+a2+a3+a4+a5+a6+a7+a8) | B45: =SUM(B46:B53) -> 0.00 | C45: 0.00 | D45: 0.00 | E45: 0.00 | F45: 0.00 | G45: 0.00
A46: a1) Fondo de Aportaciones para la Nómina Educativa y Gasto Operativo | B46: 0.00 | C46: 0.00 | D46: 0.00 | E46: 0.00 | F46: 0.00 | G46: =F46-B46 -> 0.00
A47: a2) Fondo de Aportaciones para los Servicios de Salud | B47: 0.00 | C47: 0.00 | D47: 0.00 | E47: 0.00 | F47: 0.00 | G47: 0.00
A48: a3) Fondo de Aportaciones para la Infraestructura Social | B48: 0.00 | C48: 0.00 | D48: 0.00 | E48: 0.00 | F48: 0.00 | G48: 0.00
A49: a4) Fondo de Aportaciones para el Fortalecimiento de los Municipios y de las Demarcaciones Territoriales del Distrito Federal | B49: 0.00 | C49: 0.00 | D49: 0.00 | E49: 0.00 | F49: 0.00 | G49: 0.00
A50: a5) Fondo de Aportaciones Múltiples | B50: 0.00 | C50: 0.00 | D50: 0.00 | E50: 0.00 | F50: 0.00 | G50: 0.00
A51: a6) Fondo de Aportaciones para la Educación Tecnológica y de Adultos | B51: 0.00 | C51: 0.00 | D51: 0.00 | E51: 0.00 | F51: 0.00 | G51: 0.00
A52: a7) Fondo de Aportaciones para la Seguridad Pública de los Estados y del Distrito Federal | B52: 0.00 | C52: 0.00 | D52: 0.00 | E52: 0.00 | F52: 0.00 | G52: 0.00
A53: a8) Fondo de Aportaciones para el Fortalecimiento de las Entidades Federativas | B53: 0.00 | C53: 0.00 | D53: 0.00 | E53: 0.00 | F53: 0.00 | G53: 0.00
A54: B. Convenios (B=b1+b2+b3+b4) | B54: =SUM(B55:B58) -> 0.00 | C54: 0.00 | D54: 0.00 | E54: 0.00 | F54: 0.00 | G54: 0.00
A55: b1) Convenios de Protección Social en Salud | B55: 0.00 | C55: 0.00 | D55: 0.00 | E55: 0.00 | F55: 0.00 | G55: =F55-B55 -> 0.00
A56: b2) Convenios de Descentralización | B56: 0.00 | C56: 0.00 | D56: 0.00 | E56: 0.00 | F56: 0.00 | G56: =F56-B56 -> 0.00
A57: b3) Convenios de Reasignación | B57: 0.00 | C57: 0.00 | D57: 0.00 | E57: 0.00 | F57: 0.00 | G57: =F57-B57 -> 0.00
A58: b4) Otros Convenios y Subsidios | B58: 0.00 | C58: 0.00 | D58: 0.00 | E58: 0.00 | F58: 0.00 | G58: =F58-B58 -> 0.00
A59: C. Fondos Distintos de Aportaciones (C=c1+c2) | B59: =SUM(B60:B61) -> 0.00 | C59: 0.00 | D59: 0.00 | E59: 0.00 | F59: 0.00 | G59: 0.00
A60: c1) Fondo para Entidades Federativas y Municipios Productores de Hidrocarburos | B60: 0.00 | C60: 0.00 | D60: 0.00 | E60: 0.00 | F60: 0.00 | G60: =F60-B60 -> 0.00
A61: c2) Fondo Minero | B61: 0.00 | C61: 0.00 | D61: 0.00 | E61: 0.00 | F61: 0.00 | G61: =F61-B61 -> 0.00
A62: D. Transferencias, Asignaciones, Subsidios y Subvenciones, y Pensiones y Jubilaciones | B62: 0.00 | C62: 0.00 | D62: 0.00 | E62: 0.00 | F62: 0.00 | G62: =F62-B62 -> 0.00
A63: E. Otras Transferencias Federales Etiquetadas | B63: 0.00 | C63: 0.00 | D63: 0.00 | E63: 0.00 | F63: 0.00 | G63: =F63-B63 -> 0.00
A65: II. Total de Transferencias Federales Etiquetadas (II = A + B + C + D + E) | B65: =B45+B54+B59+B62+B63 -> 0.00 | C65: 0.00 | D65: 0.00 | E65: 0.00 | F65: 0.00 | G65: 0.00
A67: III. Ingresos Derivados de Financiamientos (III = A) | B67: =B68 -> 0.00 | C67: 0.00 | D67: 0.00 | E67: 0.00 | F67: 0.00 | G67: 0.00
A68: A. Ingresos Derivados de Financiamientos | B68: 0.00 | C68: 0.00 | D68: 0.00 | E68: 0.00 | F68: 0.00 | G68: =F68-B68 -> 0.00
A70: IV. Total de Ingresos (IV = I + II + III) | B70: =B41+B65+B67 -> 81,588,318.38 | C70: 0.00 | D70: 81,588,318.38 | E70: 57,570,319.67 | F70: 57,570,319.67 | G70: -24,017,998.71
A72: Datos Informativos
A73: 1. Ingresos Derivados de Financiamientos con Fuente de Pago de Ingresos de Libre Disposición | B73: 0.00 | C73: 0.00 | D73: 0.00 | E73: 0.00 | F73: 0.00 | G73: =F73-B73 -> 0.00
A74: 2. Ingresos Derivados de Financiamientos con Fuente de Pago de Transferencias Federales Etiquetadas | B74: 0.00 | C74: 0.00 | D74: 0.00 | E74: 0.00 | F74: 0.00 | G74: =F74-B74 -> 0.00
A75: 3. Ingresos Derivados de Financiamientos (3 = 1 + 2) | B75: =B73+B74 -> 0.00 | C75: 0.00 | D75: 0.00 | E75: 0.00 | F75: 0.00 | G75: 0.00

Sheet Formato 6a
A1: Formato 6 a) Estado Analítico del Ejercicio del Presupuesto de Egresos Detallado - LDF (Clasificación por Objeto del Gasto)
A2: JUNTA MUNICIPAL DE AGUA POTABLE Y SANEAMIENTO DE SAN LUIS DE LA PAZ
A3: Estado Analítico del Ejercicio del Presupuesto de Egresos Detallado - LDF
A4: Clasificación por Objeto del Gasto (Capítulo y Concepto)
A5: ='Formato 3'!A4 -> Al 31 de Diciembre de 2022 y al 30 DE SEPTIEMBRE DE 2025
A6: (PESOS)
A7: Concepto (c) | B7: Egresos | G7: Subejercicio (e)
B8: Aprobado (d) | C8: Ampliaciones/ (Reducciones) | D8: Modificado | E8: Devengado | F8: Pagado
A9: I. Gasto No Etiquetado (I=A+B+C+D+E+F+G+H+I) | B9: =SUM(B10,B18,B28,B38,B48,B58,B62,B71,B75) -> 81,588,318.38 | C9: 0.00 | D9: 81,588,318.38 | E9: 50,097,228.69 | F9: 49,791,740.88 | G9: 31,491,089.69
A10: A. Servicios Personales (A=a1+a2+a3+a4+a5+a6+a7) | B10: =SUM(B11:B17) -> 36,356,087.32 | C10: 30,000.00 | D10: 36,386,087.32 | E10: 23,741,159.93 | F10: 23,613,870.32 | G10: 12,644,927.39
A11: a1) Remuneraciones al Personal de Carácter Permanente | B11: 20,934,958.72 | C11: -947,589.68 | D11: 19,987,369.04 | E11: 14,376,818.16 | F11: 14,376,818.16 | G11: =D11-E11 -> 5,610,550.88
A12: a2) Remuneraciones al Personal de Carácter Transitorio | B12: 1,912,589.34 | C12: 947,589.68 | D12: 2,860,179.02 | E12: 1,756,423.53 | F12: 1,756,423.53 | G12: 1,103,755.49
A13: a3) Remuneraciones Adicionales y Especiales | B13: 3,475,362.69 | C13: 30,000.00 | D13: 3,505,362.69 | E13: 759,258.49 | F13: 759,258.49 | G13: 2,746,104.20
A14: a4) Seguridad Social | B14: 6,743,614.29 | C14: 0.00 | D14: 6,743,614.29 | E14: 4,816,380.65 | F14: 4,816,380.65 | G14: 1,927,233.64
A15: a5) Otras Prestaciones Sociales y Económicas | B15: 1,729,562.28 | C15: 0.00 | D15: 1,729,562.28 | E15: 1,021,156.79 | F15: 1,015,464.58 | G15: 708,405.49
A16: a6) Previsiones | B16: 0.00 | C16: 0.00 | D16: 0.00 | E16: 0.00 | F16: 0.00 | G16: 0.00
A17: a7) Pago de Estímulos a Servidores Públicos | B17: 1,560,000.00 | C17: 0.00 | D17: 1,560,000.00 | E17: 1,011,122.31 | F17: 889,524.91 | G17: 548,877.69
A18: B. Materiales y Suministros (B=b1+b2+b3+b4+b5+b6+b7+b8+b9) | B18: =SUM(B19:B27) -> 13,763,532.31 | C18: -900,460.10 | D18: 12,863,072.21 | E18: 7,860,742.67 | F18: 7,780,572.30 | G18: 5,002,329.54
A19: b1) Materiales de Administración, Emisión de Documentos y Artículos Oficiales | B19: 241,988.86 | C19: 110,015.58 | D19: 352,004.44 | E19: 243,772.70 | F19: 234,064.04 | G19: =D19-E19 -> 108,231.74
A20: b2) Alimentos y Utensilios | B20: 28,080.00 | C20: 0.00 | D20: 28,080.00 | E20: 24,956.26 | F20: 24,956.26 | G20: 3,123.74
A21: b3) Materias Primas y Materiales de Producción y Comercialización | B21: 169,081.12 | C21: -20,000.00 | D21: 149,081.12 | E21: 25,230.29 | F21: 25,230.29 | G21: 123,850.83
A22: b4) Materiales y Artículos de Construcción y de Reparación | B22: 3,909,885.10 | C22: -751,880.01 | D22: 3,158,005.09 | E22: 1,459,134.76 | F22: 1,388,673.05 | G22: 1,698,870.33
A23: b5) Productos Químicos, Farmacéuticos y de Laboratorio | B23: 5,604,828.77 | C23: -113,595.67 | D23: 5,491,233.10 | E23: 3,693,931.79 | F23: 3,693,931.79 | G23: 1,797,301.31
A24: b6) Combustibles, Lubricantes y Aditivos | B24: 2,852,304.00 | C24: -300,000.00 | D24: 2,552,304.00 | E24: 1,496,996.51 | F24: 1,496,996.51 | G24: 1,055,307.49
A25: b7) Vestuario, Blancos, Prendas de Protección y Artículos Deportivos | B25: 840,192.00 | C25: 165,000.00 | D25: 1,005,192.00 | E25: 891,753.97 | F25: 891,753.97 | G25: 113,438.03
A26: b8) Materiales y Suministros Para Seguridad | B26: 0.00 | C26: 0.00 | D26: 0.00 | E26: 0.00 | F26: 0.00 | G26: 0.00
A27: b9) Herramientas, Refacciones y Accesorios Menores | B27: 117,172.46 | C27: 10,000.00 | D27: 127,172.46 | E27: 24,966.39 | F27: 24,966.39 | G27: 102,206.07
A28: C. Servicios Generales (C=c1+c2+c3+c4+c5+c6+c7+c8+c9) | B28: =SUM(B29:B37) -> 23,007,148.55 | C28: 1,363,172.90 | D28: 24,370,321.45 | E28: 16,367,391.74 | F28: 16,270,848.91 | G28: 8,002,929.71
A29: c1) Servicios Básicos | B29: 10,654,539.34 | C29: 2,427,400.00 | D29: 13,081,939.34 | E29: 9,121,355.23 | F29: 9,041,730.50 | G29: =D29-E29 -> 3,960,584.11
A30: c2) Servicios de Arrendamiento | B30: 769,472.00 | C30: -77,400.00 | D30: 692,072.00 | E30: 444,347.59 | F30: 444,347.59 | G30: 247,724.41
A31: c3) Servicios Profesionales, Científicos, Técnicos y Otros Servicios | B31: 2,601,731.30 | C31: -1,000,420.56 | D31: 1,601,310.74 | E31: 1,040,386.69 | F31: 1,040,386.69 | G31: 560,924.05
A32: c4) Servicios Financieros, Bancarios y Comerciales | B32: 378,160.00 | C32: -70,000.00 | D32: 308,160.00 | E32: 255,039.97 | F32: 255,039.97 | G32: 53,120.03
A33: c5) Servicios de Instalación, Reparación, Mantenimiento y Conservación | B33: 3,557,994.63 | C33: 254,992.75 | D33: 3,812,987.38 | E33: 2,388,834.03 | F33: 2,371,915.93 | G33: 1,424,153.35
A34: c6) Servicios de Comunicación Social y Publicidad | B34: 173,056.00 | C34: -51,399.29 | D34: 121,656.71 | E34: 3,563.71 | F34: 3,563.71 | G34: 118,093.00
A35: c7) Servicios de Traslado y Viáticos | B35: 58,406.40 | C35: 0.00 | D35: 58,406.40 | E35: 24,510.26 | F35: 24,510.26 | G35: 33,896.14
A36: c8) Servicios Oficiales | B36: 427,232.00 | C36: 30,000.00 | D36: 457,232.00 | E36: 274,064.36 | F36: 274,064.36 | G36: 183,167.64
A37: c9) Otros Servicios Generales | B37: 4,386,556.88 | C37: -150,000.00 | D37: 4,236,556.88 | E37: 2,815,289.90 | F37: 2,815,289.90 | G37: 1,421,266.98
A38: D. Transferencias, Asignaciones, Subsidios y Otras Ayudas (D=d1+d2+d3+d4+d5+d6+d7+d8+d9) | B38: =SUM(B39:B47) -> 646,496.24 | C38: 65,000.00 | D38: 711,496.24 | E38: 383,572.27 | F38: 382,087.27 | G38: 327,923.97
A39: d1) Transferencias Internas y Asignaciones al Sector Público | B39: 0.00 | C39: 0.00 | D39: 0.00 | E39: 0.00 | F39: 0.00 | G39: =D39-E39 -> 0.00
A40: d2) Transferencias al Resto del Sector Público | B40: 0.00 | C40: 0.00 | D40: 0.00 | E40: 0.00 | F40: 0.00 | G40: 0.00
A41: d3) Subsidios y Subvenciones | B41: 0.00 | C41: 0.00 | D41: 0.00 | E41: 0.00 | F41: 0.00 | G41: 0.00
A42: d4) Ayudas Sociales | B42: 624,000.00 | C42: 65,000.00 | D42: 689,000.00 | E42: 365,546.27 | F42: 364,061.27 | G42: 323,453.73
A43: d5) Pensiones y Jubilaciones | B43: 22,496.24 | C43: 0.00 | D43: 22,496.24 | E43: 18,026.00 | F43: 18,026.00 | G43: 4,470.24
A44: d6) Transferencias a Fideicomisos, Mandatos y Otros Análogos | B44: 0.00 | C44: 0.00 | D44: 0.00 | E44: 0.00 | F44: 0.00 | G44: 0.00
A45: d7) Transferencias a la Seguridad Social | B45: 0.00 | C45: 0.00 | D45: 0.00 | E45: 0.00 | F45: 0.00 | G45: 0.00
A46: d8) Donativos | B46: 0.00 | C46: 0.00 | D46: 0.00 | E46: 0.00 | F46: 0.00 | G46: 0.00
A47: d9) Transferencias al Exterior | B47: 0.00 | C47: 0.00 | D47: 0.00 | E47: 0.00 | F47: 0.00 | G47: 0.00
A48: E. Bienes Muebles, Inmuebles e Intangibles (E=e1+e2+e3+e4+e5+e6+e7+e8+e9) | B48: =SUM(B49:B57) -> 4,315,053.96 | C48: 442,287.20 | D48: 4,757,341.16 | E48: 1,744,362.08 | F48: 1,744,362.08 | G48: 3,012,979.08
A49: e1) Mobiliario y Equipo de Administración | B49: 313,081.93 | C49: 108,480.00 | D49: 421,561.93 | E49: 181,374.88 | F49: 181,374.88 | G49: =D49-E49 -> 240,187.05
A50: e2) Mobiliario y Equipo Educacional y Recreativo | B50: 0.00 | C50: 0.00 | D50: 0.00 | E50: 0.00 | F50: 0.00 | G50: 0.00
A51: e3) Equipo e Instrumental Médico y de Laboratorio | B51: 0.00 | C51: 0.00 | D51: 0.00 | E51: 0.00 | F51: 0.00 | G51: 0.00
A52: e4) Vehículos y Equipo de Transporte | B52: 83,200.00 | C52: 0.00 | D52: 83,200.00 | E52: 0.00 | F52: 0.00 | G52: 83,200.00
A53: e5) Equipo de Defensa y Seguridad | B53: 0.00 | C53: 0.00 | D53: 0.00 | E53: 0.00 | F53: 0.00 | G53: 0.00
A54: e6) Maquinaria, Otros Equipos y Herramientas | B54: 2,937,760.83 | C54: -166,192.80 | D54: 2,771,568.03 | E54: 279,387.20 | F54: 279,387.20 | G54: 2,492,180.83
A55: e7) Activos Biológicos | B55: 0.00 | C55: 0.00 | D55: 0.00 | E55: 0.00 | F55: 0.00 | G55: 0.00
A56: e8) Bienes Inmuebles | B56: 0.00 | C56: 0.00 | D56: 0.00 | E56: 0.00 | F56: 0.00 | G56: 0.00
A57: e9) Activos Intangibles | B57: 981,011.20 | C57: 500,000.00 | D57: 1,481,011.20 | E57: 1,283,600.00 | F57: 1,283,600.00 | G57: 197,411.20
A58: F. Inversión Pública (F=f1+f2+f3) | B58: =SUM(B59:B61) -> 3,500,000.00 | C58: -1,000,000.00 | D58: 2,500,000.00 | E58: 0.00 | F58: 0.00 | G58: 2,500,000.00
A59: f1) Obra Pública en Bienes de Dominio Público | B59: 2,500,000.00 | C59: -1,000,000.00 | D59: 1,500,000.00 | E59: 0.00 | F59: 0.00 | G59: =D59-E59 -> 1,500,000.00
A60: f2) Obra Pública en Bienes Propios | B60: 1,000,000.00 | C60: 0.00 | D60: 1,000,000.00 | E60: 0.00 | F60: 0.00 | G60: =D60-E60 -> 1,000,000.00
A61: f3) Proyectos Productivos y Acciones de Fomento | B61: 0.00 | C61: 0.00 | D61: 0.00 | E61: 0.00 | F61: 0.00 | G61: =D61-E61 -> 0.00
A62: G. Inversiones Financieras y Otras Provisiones (G=g1+g2+g3+g4+g5+g6+g7) | B62: =SUM(B63:B67,B69:B70) -> 0.00 | C62: 0.00 | D62: 0.00 | E62: 0.00 | F62: 0.00 | G62: 0.00
A63: g1) Inversiones Para el Fomento de Actividades Productivas | B63: 0.00 | C63: 0.00 | D63: 0.00 | E63: 0.00 | F63: 0.00 | G63: =D63-E63 -> 0.00
A64: g2) Acciones y Participaciones de Capital | B64: 0.00 | C64: 0.00 | D64: 0.00 | E64: 0.00 | F64: 0.00 | G64: 0.00
A65: g3) Compra de Títulos y Valores | B65: 0.00 | C65: 0.00 | D65: 0.00 | E65: 0.00 | F65: 0.00 | G65: 0.00
A66: g4) Concesión de Préstamos | B66: 0.00 | C66: 0.00 | D66: 0.00 | E66: 0.00 | F66: 0.00 | G66: 0.00
A67: g5) Inversiones en Fideicomisos, Mandatos y Otros Análogos | B67: 0.00 | C67: 0.00 | D67: 0.00 | E67: 0.00 | F67: 0.00 | G67: 0.00
A68: Fideicomiso de Desastres Naturales (Informativo) | G68: 0.00
A69: g6) Otras Inversiones Financieras | B69: 0.00 | C69: 0.00 | D69: 0.00 | E69: 0.00 | F69: 0.00 | G69: 0.00
A70: g7) Provisiones para Contingencias y Otras Erogaciones Especiales | B70: 0.00 | C70: 0.00 | D70: 0.00 | E70: 0.00 | F70: 0.00 | G70: 0.00
A71: H. Participaciones y Aportaciones (H=h1+h2+h3) | B71: =SUM(B72:B74) -> 0.00 | C71: 0.00 | D71: 0.00 | E71: 0.00 | F71: 0.00 | G71: 0.00
A72: h1) Participaciones | B72: 0.00 | C72: 0.00 | D72: 0.00 | E72: 0.00 | F72: 0.00 | G72: =D72-E72 -> 0.00
A73: h2) Aportaciones | B73: 0.00 | C73: 0.00 | D73: 0.00 | E73: 0.00 | F73: 0.00 | G73: =D73-E73 -> 0.00
A74: h3) Convenios | B74: 0.00 | C74: 0.00 | D74: 0.00 | E74: 0.00 | F74: 0.00 | G74: =D74-E74 -> 0.00
A75: I. Deuda Pública (I=i1+i2+i3+i4+i5+i6+i7) | B75: =SUM(B76:B82) -> 0.00 | C75: 0.00 | D75: 0.00 | E75: 0.00 | F75: 0.00 | G75: 0.00
A76: i1) Amortización de la Deuda Pública | B76: 0.00 | C76: 0.00 | D76: 0.00 | E76: 0.00 | F76: 0.00 | G76: =D76-E76 -> 0.00
A77: i2) Intereses de la Deuda Pública | B77: 0.00 | C77: 0.00 | D77: 0.00 | E77: 0.00 | F77: 0.00 | G77: 0.00
A78: i3) Comisiones de la Deuda Pública | B78: 0.00 | C78: 0.00 | D78: 0.00 | E78: 0.00 | F78: 0.00 | G78: 0.00
A79: i4) Gastos de la Deuda Pública | B79: 0.00 | C79: 0.00 | D79: 0.00 | E79: 0.00 | F79: 0.00 | G79: 0.00
A80: i5) Costo por Coberturas | B80: 0.00 | C80: 0.00 | D80: 0.00 | E80: 0.00 | F80: 0.00 | G80: 0.00
A81: i6) Apoyos Financieros | B81: 0.00 | C81: 0.00 | D81: 0.00 | E81: 0.00 | F81: 0.00 | G81: 0.00
A82: i7) Adeudos de Ejercicios Fiscales Anteriores (ADEFAS) | B82: 0.00 | C82: 0.00 | D82: 0.00 | E82: 0.00 | F82: 0.00 | G82: 0.00
A84: II. Gasto Etiquetado (II=A+B+C+D+E+F+G+H+I) | B84: =SUM(B85,B93,B103,B113,B123,B133,B137,B146,B150) -> 0.00 | C84: 0.00 | D84: 0.00 | E84: 0.00 | F84: 0.00 | G84: 0.00
A85: A. Servicios Personales (A=a1+a2+a3+a4+a5+a6+a7) | B85: =SUM(B86:B92) -> 0.00 | C85: 0.00 | D85: 0.00 | E85: 0.00 | F85: 0.00 | G85: 0.00
A86: a1) Remuneraciones al Personal de Carácter Permanente | B86: 0.00 | C86: 0.00 | D86: 0.00 | E86: 0.00 | F86: 0.00 | G86: =D86-E86 -> 0.00
A87: a2) Remuneraciones al Personal de Carácter Transitorio | B87: 0.00 | C87: 0.00 | D87: 0.00 | E87: 0.00 | F87: 0.00 | G87: 0.00
A88: a3) Remuneraciones Adicionales y Especiales | B88: 0.00 | C88: 0.00 | D88: 0.00 | E88: 0.00 | F88: 0.00 | G88: 0.00
A89: a4) Seguridad Social | B89: 0.00 | C89: 0.00 | D89: 0.00 | E89: 0.00 | F89: 0.00 | G89: 0.00
A90: a5) Otras Prestaciones Sociales y Económicas | B90: 0.00 | C90: 0.00 | D90: 0.00 | E90: 0.00 | F90: 0.00 | G90: 0.00
A91: a6) Previsiones | B91: 0.00 | C91: 0.00 | D91: 0.00 | E91: 0.00 | F91: 0.00 | G91: 0.00
A92: a7) Pago de Estímulos a Servidores Públicos | B92: 0.00 | C92: 0.00 | D92: 0.00 | E92: 0.00 | F92: 0.00 | G92: 0.00
A93: B. Materiales y Suministros (B=b1+b2+b3+b4+b5+b6+b7+b8+b9) | B93: =SUM(B94:B102) -> 0.00 | C93: 0.00 | D93: 0.00 | E93: 0.00 | F93: 0.00 | G93: 0.00
A94: b1) Materiales de Administración, Emisión de Documentos y Artículos Oficiales | B94: 0.00 | C94: 0.00 | D94: 0.00 | E94: 0.00 | F94: 0.00 | G94: =D94-E94 -> 0.00
A95: b2) Alimentos y Utensilios | B95: 0.00 | C95: 0.00 | D95: 0.00 | E95: 0.00 | F95: 0.00 | G95: 0.00
A96: b3) Materias Primas y Materiales de Producción y Comercialización | B96: 0.00 | C96: 0.00 | D96: 0.00 | E96: 0.00 | F96: 0.00 | G96: 0.00
A97: b4) Materiales y Artículos de Construcción y de Reparación | B97: 0.00 | C97: 0.00 | D97: 0.00 | E97: 0.00 | F97: 0.00 | G97: 0.00
A98: b5) Productos Químicos, Farmacéuticos y de Laboratorio | B98: 0.00 | C98: 0.00 | D98: 0.00 | E98: 0.00 | F98: 0.00 | G98: 0.00
A99: b6) Combustibles, Lubricantes y Aditivos | B99: 0.00 | C99: 0.00 | D99: 0.00 | E99: 0.00 | F99: 0.00 | G99: 0.00
A100: b7) Vestuario, Blancos, Prendas de Protección y Artículos Deportivos | B100: 0.00 | C100: 0.00 | D100: 0.00 | E100: 0.00 | F100: 0.00 | G100: 0.00
A101: b8) Materiales y Suministros Para Seguridad | B101: 0.00 | C101: 0.00 | D101: 0.00 | E101: 0.00 | F101: 0.00 | G101: 0.00
A102: b9) Herramientas, Refacciones y Accesorios Menores | B102: 0.00 | C102: 0.00 | D102: 0.00 | E102: 0.00 | F102: 0.00 | G102: 0.00
A103: C. Servicios Generales (C=c1+c2+c3+c4+c5+c6+c7+c8+c9) | B103: =SUM(B104:B112) -> 0.00 | C103: 0.00 | D103: 0.00 | E103: 0.00 | F103: 0.00 | G103: 0.00
A104: c1) Servicios Básicos | B104: 0.00 | C104: 0.00 | D104: 0.00 | E104: 0.00 | F104: 0.00 | G104: =D104-E104 -> 0.00
A105: c2) Servicios de Arrendamiento | B105: 0.00 | C105: 0.00 | D105: 0.00 | E105: 0.00 | F105: 0.00 | G105: 0.00
A106: c3) Servicios Profesionales, Científicos, Técnicos y Otros Servicios | B106: 0.00 | C106: 0.00 | D106: 0.00 | E106: 0.00 | F106: 0.00 | G106: 0.00
A107: c4) Servicios Financieros, Bancarios y Comerciales | B107: 0.00 | C107: 0.00 | D107: 0.00 | E107: 0.00 | F107: 0.00 | G107: 0.00
A108: c5) Servicios de Instalación, Reparación, Mantenimiento y Conservación | B108: 0.00 | C108: 0.00 | D108: 0.00 | E108: 0.00 | F108: 0.00 | G108: 0.00
A109: c6) Servicios de Comunicación Social y Publicidad | B109: 0.00 | C109: 0.00 | D109: 0.00 | E109: 0.00 | F109: 0.00 | G109: 0.00
A110: c7) Servicios de Traslado y Viáticos | B110: 0.00 | C110: 0.00 | D110: 0.00 | E110: 0.00 | F110: 0.00 | G110: 0.00
A111: c8) Servicios Oficiales | B111: 0.00 | C111: 0.00 | D111: 0.00 | E111: 0.00 | F111: 0.00 | G111: 0.00
A112: c9) Otros Servicios Generales | B112: 0.00 | C112: 0.00 | D112: 0.00 | E112: 0.00 | F112: 0.00 | G112: 0.00
A113: D. Transferencias, Asignaciones, Subsidios y Otras Ayudas (D=d1+d2+d3+d4+d5+d6+d7+d8+d9) | B113: =SUM(B114:B122) -> 0.00 | C113: 0.00 | D113: 0.00 | E113: 0.00 | F113: 0.00 | G113: 0.00
A114: d1) Transferencias Internas y Asignaciones al Sector Público | B114: 0.00 | C114: 0.00 | D114: 0.00 | E114: 0.00 | F114: 0.00 | G114: =D114-E114 -> 0.00
A115: d2) Transferencias al Resto del Sector Público | B115: 0.00 | C115: 0.00 | D115: 0.00 | E115: 0.00 | F115: 0.00 | G115: 0.00
A116: d3) Subsidios y Subvenciones | B116: 0.00 | C116: 0.00 | D116: 0.00 | E116: 0.00 | F116: 0.00 | G116: 0.00
A117: d4) Ayudas Sociales | B117: 0.00 | C117: 0.00 | D117: 0.00 | E117: 0.00 | F117: 0.00 | G117: 0.00
A118: d5) Pensiones y Jubilaciones | B118: 0.00 | C118: 0.00 | D118: 0.00 | E118: 0.00 | F118: 0.00 | G118: 0.00
A119: d6) Transferencias a Fideicomisos, Mandatos y Otros Análogos | B119: 0.00 | C119: 0.00 | D119: 0.00 | E119: 0.00 | F119: 0.00 | G119: 0.00
A120: d7) Transferencias a la Seguridad Social | B120: 0.00 | C120: 0.00 | D120: 0.00 | E120: 0.00 | F120: 0.00 | G120: 0.00
A121: d8) Donativos | B121: 0.00 | C121: 0.00 | D121: 0.00 | E121: 0.00 | F121: 0.00 | G121: 0.00
A122: d9) Transferencias al Exterior | B122: 0.00 | C122: 0.00 | D122: 0.00 | E122: 0.00 | F122: 0.00 | G122: 0.00
A123: E. Bienes Muebles, Inmuebles e Intangibles (E=e1+e2+e3+e4+e5+e6+e7+e8+e9) | B123: =SUM(B124:B132) -> 0.00 | C123: 0.00 | D123: 0.00 | E123: 0.00 | F123: 0.00 | G123: 0.00
A124: e1) Mobiliario y Equipo de Administración | B124: 0.00 | C124: 0.00 | D124: 0.00 | E124: 0.00 | F124: 0.00 | G124: =D124-E124 -> 0.00
A125: e2) Mobiliario y Equipo Educacional y Recreativo | B125: 0.00 | C125: 0.00 | D125: 0.00 | E125: 0.00 | F125: 0.00 | G125: 0.00
A126: e3) Equipo e Instrumental Médico y de Laboratorio | B126: 0.00 | C126: 0.00 | D126: 0.00 | E126: 0.00 | F126: 0.00 | G126: 0.00
A127: e4) Vehículos y Equipo de Transporte | B127: 0.00 | C127: 0.00 | D127: 0.00 | E127: 0.00 | F127: 0.00 | G127: 0.00
A128: e5) Equipo de Defensa y Seguridad | B128: 0.00 | C128: 0.00 | D128: 0.00 | E128: 0.00 | F128: 0.00 | G128: 0.00
A129: e6) Maquinaria, Otros Equipos y Herramientas | B129: 0.00 | C129: 0.00 | D129: 0.00 | E129: 0.00 | F129: 0.00 | G129: 0.00
A130: e7) Activos Biológicos | B130: 0.00 | C130: 0.00 | D130: 0.00 | E130: 0.00 | F130: 0.00 | G130: 0.00
A131: e8) Bienes Inmuebles | B131: 0.00 | C131: 0.00 | D131: 0.00 | E131: 0.00 | F131: 0.00 | G131: 0.00
A132: e9) Activos Intangibles | B132: 0.00 | C132: 0.00 | D132: 0.00 | E132: 0.00 | F132: 0.00 | G132: 0.00
A133: F. Inversión Pública (F=f1+f2+f3) | B133: =SUM(B134:B136) -> 0.00 | C133: 0.00 | D133: 0.00 | E133: 0.00 | F133: 0.00 | G133: 0.00
A134: f1) Obra Pública en Bienes de Dominio Público | B134: 0.00 | C134: 0.00 | D134: 0.00 | E134: 0.00 | F134: 0.00 | G134: =D134-E134 -> 0.00
A135: f2) Obra Pública en Bienes Propios | B135: 0.00 | C135: 0.00 | D135: 0.00 | E135: 0.00 | F135: 0.00 | G135: =D135-E135 -> 0.00
A136: f3) Proyectos Productivos y Acciones de Fomento | B136: 0.00 | C136: 0.00 | D136: 0.00 | E136: 0.00 | F136: 0.00 | G136: =D136-E136 -> 0.00
A137: G. Inversiones Financieras y Otras Provisiones (G=g1+g2+g3+g4+g5+g6+g7) | B137: =SUM(B138:B142,B144:B145) -> 0.00 | C137: 0.00 | D137: 0.00 | E137: 0.00 | F137: 0.00 | G137: 0.00
A138: g1) Inversiones Para el Fomento de Actividades Productivas | B138: 0.00 | C138: 0.00 | D138: 0.00 | E138: 0.00 | F138: 0.00 | G138: =D138-E138 -> 0.00
A139: g2) Acciones y Participaciones de Capital | B139: 0.00 | C139: 0.00 | D139: 0.00 | E139: 0.00 | F139: 0.00 | G139: 0.00
A140: g3) Compra de Títulos y Valores | B140: 0.00 | C140: 0.00 | D140: 0.00 | E140: 0.00 | F140: 0.00 | G140: 0.00
A141: g4) Concesión de Préstamos | B141: 0.00 | C141: 0.00 | D141: 0.00 | E141: 0.00 | F141: 0.00 | G141: 0.00
A142: g5) Inversiones en Fideicomisos, Mandatos y Otros Análogos | B142: 0.00 | C142: 0.00 | D142: 0.00 | E142: 0.00 | F142: 0.00 | G142: 0.00
A143: Fideicomiso de Desastres Naturales (Informativo) | G143: 0.00
A144: g6) Otras Inversiones Financieras | B144: 0.00 | C144: 0.00 | D144: 0.00 | E144: 0.00 | F144: 0.00 | G144: 0.00
A145: g7) Provisiones para Contingencias y Otras Erogaciones Especiales | B145: 0.00 | C145: 0.00 | D145: 0.00 | E145: 0.00 | F145: 0.00 | G145: 0.00
A146: H. Participaciones y Aportaciones (H=h1+h2+h3) | B146: =SUM(B147:B149) -> 0.00 | C146: 0.00 | D146: 0.00 | E146: 0.00 | F146: 0.00 | G146: 0.00
A147: h1) Participaciones | B147: 0.00 | C147: 0.00 | D147: 0.00 | E147: 0.00 | F147: 0.00 | G147: =D147-E147 -> 0.00
A148: h2) Aportaciones | B148: 0.00 | C148: 0.00 | D148: 0.00 | E148: 0.00 | F148: 0.00 | G148: =D148-E148 -> 0.00
A149: h3) Convenios | B149: 0.00 | C149: 0.00 | D149: 0.00 | E149: 0.00 | F149: 0.00 | G149: =D149-E149 -> 0.00
A150: I. Deuda Pública (I=i1+i2+i3+i4+i5+i6+i7) | B150: =SUM(B151:B157) -> 0.00 | C150: 0.00 | D150: 0.00 | E150: 0.00 | F150: 0.00 | G150: 0.00
A151: i1) Amortización de la Deuda Pública | B151: 0.00 | C151: 0.00 | D151: 0.00 | E151: 0.00 | F151: 0.00 | G151: =D151-E151 -> 0.00
A152: i2) Intereses de la Deuda Pública | B152: 0.00 | C152: 0.00 | D152: 0.00 | E152: 0.00 | F152: 0.00 | G152: 0.00
A153: i3) Comisiones de la Deuda Pública | B153: 0.00 | C153: 0.00 | D153: 0.00 | E153: 0.00 | F153: 0.00 | G153: 0.00
A154: i4) Gastos de la Deuda Pública | B154: 0.00 | C154: 0.00 | D154: 0.00 | E154: 0.00 | F154: 0.00 | G154: 0.00
A155: i5) Costo por Coberturas | B155: 0.00 | C155: 0.00 | D155: 0.00 | E155: 0.00 | F155: 0.00 | G155: 0.00
A156: i6) Apoyos Financieros | B156: 0.00 | C156: 0.00 | D156: 0.00 | E156: 0.00 | F156: 0.00 | G156: 0.00
A157: i7) Adeudos de Ejercicios Fiscales Anteriores (ADEFAS) | B157: 0.00 | C157: 0.00 | D157: 0.00 | E157: 0.00 | F157: 0.00 | G157: 0.00
A159: III. Total de Egresos (III = I + II) | B159: =B9+B84 -> 81,588,318.38 | C159: 0.00 | D159: 81,588,318.38 | E159: 50,097,228.69 | F159: 49,791,740.88 | G159: 31,491,089.69

Sheet Formato 6b
A1: Formato 6 b) Estado Analítico del Ejercicio del Presupuesto de Egresos Detallado - LDF (Clasificación Administrativa)
A2: JUNTA MUNICIPAL DE AGUA POTABLE Y SANEAMIENTO DE SAN LUIS DE LA PAZ
A3: Estado Analítico del Ejercicio del Presupuesto de Egresos Detallado - LDF
A4: Clasificación Administrativa
A5: ='Formato 3'!A4 -> Al 31 de Diciembre de 2022 y al 30 DE SEPTIEMBRE DE 2025
A6: (PESOS)
A7: Concepto (c) | B7: Egresos | G7: Subejercicio (e)
B8: Aprobado (d) | C8: Ampliaciones/ (Reducciones) | D8: Modificado | E8: Devengado | F8: Pagado
A9: I. Gasto No Etiquetado (I=A+B+C+D+E+F+G+H) | B9: =SUM(B10:B18) -> 81,588,318.38 | C9: 0.00 | D9: 81,588,318.38 | E9: 50,097,228.69 | F9: 49,791,740.88 | G9: 2,500,000.00
A10: ADMINISTRACION | B10: 23,343,304.18 | C10: -301,618.80 | D10: 23,041,685.38 | E10: 15,757,898.22 | F10: 15,609,833.18 | G10: 0.00
A11: MANTENIMIENTO | B11: 10,815,875.55 | C11: -607,646.44 | D11: 10,208,229.11 | E11: 5,870,747.46 | F11: 5,790,998.50 | G11: 0.00
A12: OPERATIVO | B12: 10,524,788.54 | C12: 984,820.71 | D12: 11,509,609.25 | E12: 6,916,188.38 | F12: 6,916,188.38 | G12: 0.00
A13: ZONAS RURALES | B13: 2,468,613.24 | C13: -95,027.47 | D13: 2,373,585.77 | E13: 1,267,402.86 | F13: 1,265,917.86 | G13: 0.00
A14: CONTROL DE CALIDAD | B14: 2,749,003.02 | C14: 100,448.00 | D14: 2,849,451.02 | E14: 826,813.94 | F14: 826,813.94 | G14: 0.00
A15: PLANTA DE TRATAMIENTO | B15: 9,059,816.13 | C15: -60,000.00 | D15: 8,999,816.13 | E15: 5,143,099.79 | F15: 5,066,910.98 | G15: 0.00
A16: POTABILIZADORA | B16: 19,126,917.72 | C16: 979,024.00 | D16: 20,105,941.72 | E16: 14,315,078.04 | F16: 14,315,078.04 | G16: 0.00
A17: PRODDER | B17: 0.00 | C17: 0.00 | D17: 0.00 | E17: 0.00 | F17: 0.00 | G17: 0.00
A18: INVERSIONES | B18: 3,500,000.00 | C18: -1,000,000.00 | D18: 2,500,000.00 | E18: 0.00 | F18: 0.00 | G18: 2,500,000.00
A19: *
A20: II. Gasto Etiquetado (II=A+B+C+D+E+F+G+H) | B20: =SUM(B21:B29) -> 0.00 | C20: 0.00 | D20: 0.00 | E20: 0.00 | F20: 0.00 | G20: 0.00
A21: ADMINISTRACION | B21: 0.00 | C21: 0.00 | D21: 0.00 | E21: 0.00 | F21: 0.00 | G21: 0.00
A22: MANTENIMIENTO | B22: 0.00 | C22: 0.00 | D22: 0.00 | E22: 0.00 | F22: 0.00 | G22: 0.00
A23: OPERATIVO | B23: 0.00 | C23: 0.00 | D23: 0.00 | E23: 0.00 | F23: 0.00 | G23: 0.00
A24: ZONAS RURALES | B24: 0.00 | C24: 0.00 | D24: 0.00 | E24: 0.00 | F24: 0.00 | G24: 0.00
A25: CONTROL DE CALIDAD | B25: 0.00 | C25: 0.00 | D25: 0.00 | E25: 0.00 | F25: 0.00 | G25: 0.00
A26: PLANTA DE TRATAMIENTO | B26: 0.00 | C26: 0.00 | D26: 0.00 | E26: 0.00 | F26: 0.00 | G26: 0.00
A27: POTABILIZADORA | B27: 0.00 | C27: 0.00 | D27: 0.00 | E27: 0.00 | F27: 0.00 | G27: 0.00
A28: PRODDER | B28: 0.00 | C28: 0.00 | D28: 0.00 | E28: 0.00 | F28: 0.00 | G28: 0.00
G29: 0.00
A30: *
A31: III. Total de Egresos (III = I + II) | B31: =SUM(B20,B9) -> 81,588,318.38 | C31: 0.00 | D31: 81,588,318.38 | E31: 50,097,228.69 | F31: 49,791,740.88 | G31: 2,500,000.00

Sheet Formato 6c
A1: Formato 6 c) Estado Analítico del Ejercicio del Presupuesto de Egresos Detallado -LDF (Clasificación Funcional)
A2: JUNTA MUNICIPAL DE AGUA POTABLE Y SANEAMIENTO DE SAN LUIS DE LA PAZ
A3: Estado Analítico del Ejercicio del Presupueso de Egresos Detallado - LDF
A4: Clasificación Funcional (Finalidad y Función)
A5: ='Formato 3'!A4 -> Al 31 de Diciembre de 2022 y al 30 DE SEPTIEMBRE DE 2025
A6: (PESOS)
A7: Concepto (c) | B7: Egresos | G7: Subejercicio (e)
B8: Aprobado (d) | C8: Ampliaciones / (Reducciones) | D8: Modificado | E8: Devengado | F8: Pagado
A9: I. Gasto No Etiquetado (I=A+B+C+D) | B9: =SUM(B10,B19,B27,B37) -> 81,588,318.38 | C9: 0.00 | D9: 81,588,318.38 | E9: 50,097,228.69 | F9: 49,791,740.88 | G9: 0.00
A10: A. Gobierno (A=a1+a2+a3+a4+a5+a6+a7+a8) | B10: =SUM(B11:B18) -> 0.00 | C10: 0.00 | D10: 0.00 | E10: 0.00 | F10: 0.00 | G10: 0.00
A11: a1) Legislación | B11: 0.00 | C11: 0.00 | D11: 0.00 | E11: 0.00 | F11: 0.00 | G11: 0.00
A12: a2) Justicia | B12: 0.00 | C12: 0.00 | D12: 0.00 | E12: 0.00 | F12: 0.00 | G12: 0.00
A13: a3) Coordinación de la Política de Gobierno | B13: 0.00 | C13: 0.00 | D13: 0.00 | E13: 0.00 | F13: 0.00 | G13: 0.00
A14: a4) Relaciones Exteriores | B14: 0.00 | C14: 0.00 | D14: 0.00 | E14: 0.00 | F14: 0.00 | G14: 0.00
A15: a5) Asuntos Financieros y Hacendarios | B15: 0.00 | C15: 0.00 | D15: 0.00 | E15: 0.00 | F15: 0.00 | G15: 0.00
A16: a6) Seguridad Nacional | B16: 0.00 | C16: 0.00 | D16: 0.00 | E16: 0.00 | F16: 0.00 | G16: 0.00
A17: a7) Asuntos de Orden Público y de Seguridad Interior | B17: 0.00 | C17: 0.00 | D17: 0.00 | E17: 0.00 | F17: 0.00 | G17: 0.00
A18: a8) Otros Servicios Generales | B18: 0.00 | C18: 0.00 | D18: 0.00 | E18: 0.00 | F18: 0.00 | G18: 0.00
A19: B. Desarrollo Social (B=b1+b2+b3+b4+b5+b6+b7) | B19: =SUM(B20:B26) -> 81,588,318.38 | C19: 0.00 | D19: 81,588,318.38 | E19: 50,097,228.69 | F19: 49,791,740.88 | G19: 0.00
A20: b1) Protección Ambiental | B20: 81,588,318.38 | C20: 0.00 | D20: 81,588,318.38 | E20: 50,097,228.69 | F20: 49,791,740.88 | G20: 0.00
A21: b2) Vivienda y Servicios a la Comunidad | B21: 0.00 | C21: 0.00 | D21: 0.00 | E21: 0.00 | F21: 0.00 | G21: 0.00
A22: b3) Salud | B22: 0.00 | C22: 0.00 | D22: 0.00 | E22: 0.00 | F22: 0.00 | G22: 0.00
A23: b4) Recreación, Cultura y Otras Manifestaciones Sociales | B23: 0.00 | C23: 0.00 | D23: 0.00 | E23: 0.00 | F23: 0.00 | G23: 0.00
A24: b5) Educación | B24: 0.00 | C24: 0.00 | D24: 0.00 | E24: 0.00 | F24: 0.00 | G24: 0.00
A25: b6) Protección Social | B25: 0.00 | C25: 0.00 | D25: 0.00 | E25: 0.00 | F25: 0.00 | G25: 0.00
A26: b7) Otros Asuntos Sociales | B26: 0.00 | C26: 0.00 | D26: 0.00 | E26: 0.00 | F26: 0.00 | G26: 0.00
A27: C. Desarrollo Económico (C=c1+c2+c3+c4+c5+c6+c7+c8+c9) | B27: =SUM(B28:B36) -> 0.00 | C27: 0.00 | D27: 0.00 | E27: 0.00 | F27: 0.00 | G27: 0.00
A28: c1) Asuntos Económicos, Comerciales y Laborales en General | B28: 0.00 | C28: 0.00 | D28: 0.00 | E28: 0.00 | F28: 0.00 | G28: 0.00
A29: c2) Agropecuaria, Silvicultura, Pesca y Caza | B29: 0.00 | C29: 0.00 | D29: 0.00 | E29: 0.00 | F29: 0.00 | G29: 0.00
A30: c3) Combustibles y Energía | B30: 0.00 | C30: 0.00 | D30: 0.00 | E30: 0.00 | F30: 0.00 | G30: 0.00
A31: c4) Minería, Manufacturas y Construcción | B31: 0.00 | C31: 0.00 | D31: 0.00 | E31: 0.00 | F31: 0.00 | G31: 0.00
A32: c5) Transporte | B32: 0.00 | C32: 0.00 | D32: 0.00 | E32: 0.00 | F32: 0.00 | G32: 0.00
A33: c6) Comunicaciones | B33: 0.00 | C33: 0.00 | D33: 0.00 | E33: 0.00 | F33: 0.00 | G33: 0.00
A34: c7) Turismo | B34: 0.00 | C34: 0.00 | D34: 0.00 | E34: 0.00 | F34: 0.00 | G34: 0.00
A35: c8) Ciencia, Tecnología e Innovación | B35: 0.00 | C35: 0.00 | D35: 0.00 | E35: 0.00 | F35: 0.00 | G35: 0.00
A36: c9) Otras Industrias y Otros Asuntos Económicos | B36: 0.00 | C36: 0.00 | D36: 0.00 | E36: 0.00 | F36: 0.00 | G36: 0.00
A37: D. Otras No Clasificadas en Funciones Anteriores (D=d1+d2+d3+d4) | B37: =SUM(B38:B41) -> 0.00 | C37: 0.00 | D37: 0.00 | E37: 0.00 | F37: 0.00 | G37: 0.00
A38: d1) Transacciones de la Deuda Pública / Costo Financiero de la Deuda | B38: 0.00 | C38: 0.00 | D38: 0.00 | E38: 0.00 | F38: 0.00 | G38: 0.00
A39: d2) Transferencias, Participaciones y Aportaciones Entre Diferentes Niveles y Órdenes de Gobierno | B39: 0.00 | C39: 0.00 | D39: 0.00 | E39: 0.00 | F39: 0.00 | G39: 0.00
A40: d3) Saneamiento del Sistema Financiero | B40: 0.00 | C40: 0.00 | D40: 0.00 | E40: 0.00 | F40: 0.00 | G40: 0.00
A41: d4) Adeudos de Ejercicios Fiscales Anteriores | B41: 0.00 | C41: 0.00 | D41: 0.00 | E41: 0.00 | F41: 0.00 | G41: 0.00
A43: II. Gasto Etiquetado (II=A+B+C+D) | B43: =SUM(B44,B53,B61,B71) -> 0.00 | C43: 0.00 | D43: 0.00 | E43: 0.00 | F43: 0.00 | G43: 0.00
A44: A. Gobierno (A=a1+a2+a3+a4+a5+a6+a7+a8) | B44: =SUM(B45:B52) -> 0.00 | C44: 0.00 | D44: 0.00 | E44: 0.00 | F44: 0.00 | G44: 0.00
A45: a1) Legislación | B45: 0.00 | C45: 0.00 | D45: 0.00 | E45: 0.00 | F45: 0.00 | G45: 0.00
A46: a2) Justicia | B46: 0.00 | C46: 0.00 | D46: 0.00 | E46: 0.00 | F46: 0.00 | G46: 0.00
A47: a3) Coordinación de la Política de Gobierno | B47: 0.00 | C47: 0.00 | D47: 0.00 | E47: 0.00 | F47: 0.00 | G47: 0.00
A48: a4) Relaciones Exteriores | B48: 0.00 | C48: 0.00 | D48: 0.00 | E48: 0.00 | F48: 0.00 | G48: 0.00
A49: a5) Asuntos Financieros y Hacendarios | B49: 0.00 | C49: 0.00 | D49: 0.00 | E49: 0.00 | F49: 0.00 | G49: 0.00
A50: a6) Seguridad Nacional | B50: 0.00 | C50: 0.00 | D50: 0.00 | E50: 0.00 | F50: 0.00 | G50: 0.00
A51: a7) Asuntos de Orden Público y de Seguridad Interior | B51: 0.00 | C51: 0.00 | D51: 0.00 | E51: 0.00 | F51: 0.00 | G51: 0.00
A52: a8) Otros Servicios Generales | B52: 0.00 | C52: 0.00 | D52: 0.00 | E52: 0.00 | F52: 0.00 | G52: 0.00
A53: B. Desarrollo Social (B=b1+b2+b3+b4+b5+b6+b7) | B53: =SUM(B54:B60) -> 0.00 | C53: 0.00 | D53: 0.00 | E53: 0.00 | F53: 0.00 | G53: 0.00
A54: b1) Protección Ambiental | B54: 0.00 | C54: 0.00 | D54: 0.00 | E54: 0.00 | F54: 0.00 | G54: 0.00
A55: b2) Vivienda y Servicios a la Comunidad | B55: 0.00 | C55: 0.00 | D55: 0.00 | E55: 0.00 | F55: 0.00 | G55: 0.00
A56: b3) Salud | B56: 0.00 | C56: 0.00 | D56: 0.00 | E56: 0.00 | F56: 0.00 | G56: 0.00
A57: b4) Recreación, Cultura y Otras Manifestaciones Sociales | B57: 0.00 | C57: 0.00 | D57: 0.00 | E57: 0.00 | F57: 0.00 | G57: 0.00
A58: b5) Educación | B58: 0.00 | C58: 0.00 | D58: 0.00 | E58: 0.00 | F58: 0.00 | G58: 0.00
A59: b6) Protección Social | B59: 0.00 | C59: 0.00 | D59: 0.00 | E59: 0.00 | F59: 0.00 | G59: 0.00
A60: b7) Otros Asuntos Sociales | B60: 0.00 | C60: 0.00 | D60: 0.00 | E60: 0.00 | F60: 0.00 | G60: 0.00
A61: C. Desarrollo Económico (C=c1+c2+c3+c4+c5+c6+c7+c8+c9) | B61: =SUM(B62:B70) -> 0.00 | C61: 0.00 | D61: 0.00 | E61: 0.00 | F61: 0.00 | G61: 0.00
A62: c1) Asuntos Económicos, Comerciales y Laborales en General | B62: 0.00 | C62: 0.00 | D62: 0.00 | E62: 0.00 | F62: 0.00 | G62: 0.00
A63: c2) Agropecuaria, Silvicultura, Pesca y Caza | B63: 0.00 | C63: 0.00 | D63: 0.00 | E63: 0.00 | F63: 0.00 | G63: 0.00
A64: c3) Combustibles y Energía | B64: 0.00 | C64: 0.00 | D64: 0.00 | E64: 0.00 | F64: 0.00 | G64: 0.00
A65: c4) Minería, Manufacturas y Construcción | B65: 0.00 | C65: 0.00 | D65: 0.00 | E65: 0.00 | F65: 0.00 | G65: 0.00
A66: c5) Transporte | B66: 0.00 | C66: 0.00 | D66: 0.00 | E66: 0.00 | F66: 0.00 | G66: 0.00
A67: c6) Comunicaciones | B67: 0.00 | C67: 0.00 | D67: 0.00 | E67: 0.00 | F67: 0.00 | G67: 0.00
A68: c7) Turismo | B68: 0.00 | C68: 0.00 | D68: 0.00 | E68: 0.00 | F68: 0.00 | G68: 0.00
A69: c8) Ciencia, Tecnología e Innovación | B69: 0.00 | C69: 0.00 | D69: 0.00 | E69: 0.00 | F69: 0.00 | G69: 0.00
A70: c9) Otras Industrias y Otros Asuntos Económicos | B70: 0.00 | C70: 0.00 | D70: 0.00 | E70: 0.00 | F70: 0.00 | G70: 0.00
A71: D. Otras No Clasificadas en Funciones Anteriores (D=d1+d2+d3+d4) | B71: =SUM(B72:B75) -> 0.00 | C71: 0.00 | D71: 0.00 | E71: 0.00 | F71: 0.00 | G71: 0.00
A72: d1) Transacciones de la Deuda Pública / Costo Financiero de la Deuda | B72: 0.00 | C72: 0.00 | D72: 0.00 | E72: 0.00 | F72: 0.00 | G72: 0.00
A73: d2) Transferencias, Participaciones y Aportaciones Entre Diferentes Niveles y Órdenes de Gobierno | B73: 0.00 | C73: 0.00 | D73: 0.00 | E73: 0.00 | F73: 0.00 | G73: 0.00
A74: d3) Saneamiento del Sistema Financiero | B74: 0.00 | C74: 0.00 | D74: 0.00 | E74: 0.00 | F74: 0.00 | G74: 0.00
A75: d4) Adeudos de Ejercicios Fiscales Anteriores | B75: 0.00 | C75: 0.00 | D75: 0.00 | E75: 0.00 | F75: 0.00 | G75: 0.00
A77: III. Total de Egresos (III = I + II) | B77: =B43+B9 -> 81,588,318.38 | C77: 0.00 | D77: 81,588,318.38 | E77: 50,097,228.69 | F77: 49,791,740.88 | G77: 0.00

Sheet Formato 6d
A1: Formato 6 d) Estado Analítico del Ejercicio del Presupuesto de Egresos Detallado - LDF (Clasificación de Servicios Personales por Categoría)
A2: JUNTA MUNICIPAL DE AGUA POTABLE Y SANEAMIENTO DE SAN LUIS DE LA PAZ
A3: Estado Analítico del Ejercicio del Presupuesto de Egresos Detallado - LDF
A4: Clasificación de Servicios Personales por Categoría
A5: ='Formato 3'!A4 -> Al 31 de Diciembre de 2022 y al 30 DE SEPTIEMBRE DE 2025
A6: (PESOS)
A7: Concepto ( c ) | B7: Egresos | G7: Subejercicio (e)
B8: Aprobado (d) | C8: Ampliaciones / (Reducciones) | D8: Modificado | E8: Devengado | F8: Pagado
A9: I. Gasto No Etiquetado (I=A+B+C+D+E+F) | B9: =SUM(B10,B11,B12,B15,B16,B19) -> 36,356,087.32 | C9: 30,000.00 | D9: 36,386,087.32 | E9: 23,741,159.93 | F9: 23,613,870.32 | G9: 12,644,927.39
A10: A. Personal Administrativo y de Servicio Público | B10: 36,356,087.32 | C10: 30,000.00 | D10: 36,386,087.32 | E10: 23,741,159.93 | F10: 23,613,870.32 | G10: =D10-E10 -> 12644927.39
A11: B. Magisterio | B11: 0.00 | C11: 0.00 | D11: 0.00 | E11: 0.00 | F11: 0.00 | G11: =D11-E11 -> 0
A12: C. Servicios de Salud (C=c1+c2) | B12: =B13+B14 -> 0.00 | C12: 0.00 | D12: 0.00 | E12: 0.00 | F12: 0.00 | G12: 0.00
A13: c1) Personal Administrativo | B13: 0.00 | C13: 0.00 | D13: 0.00 | E13: 0.00 | F13: 0.00 | G13: =D13-E13 -> 0
A14: c2) Personal Médico, paramédico y afín | B14: 0.00 | C14: 0.00 | D14: 0.00 | E14: 0.00 | F14: 0.00 | G14: =D14-E14 -> 0
A15: D. Seguridad Pública | B15: 0.00 | C15: 0.00 | D15: 0.00 | E15: 0.00 | F15: 0.00 | G15: =D15-E15 -> 0
A16: E. Gastos asociados a la implementación de nuevas leyes federales o reformas a las mismas (E=e1+e2) | B16: =B17+B18 -> 0.00 | C16: 0.00 | D16: 0.00 | E16: 0.00 | F16: 0.00 | G16: 0.00
A17: e1) Nombre del Programa o Ley 1 | B17: 0.00 | C17: 0.00 | D17: 0.00 | E17: 0.00 | F17: 0.00 | G17: =D17-E17 -> 0
A18: e2) Nombre del Programa o Ley 2 | B18: 0.00 | C18: 0.00 | D18: 0.00 | E18: 0.00 | F18: 0.00 | G18: =D18-E18 -> 0
A19: F. Sentencias laborales definitivas | B19: 0.00 | C19: 0.00 | D19: 0.00 | E19: 0.00 | F19: 0.00 | G19: =D19-E19 -> 0
A21: II. Gasto Etiquetado (II=A+B+C+D+E+F) | B21: =SUM(B22,B23,B24,B27,B28,B31) -> 0 | C21: 0 | D21: 0 | E21: 0 | F21: 0 | G21: 0
A22: A. Personal Administrativo y de Servicio Público | B22: 0.00 | C22: 0.00 | D22: 0.00 | E22: 0.00 | F22: 0.00 | G22: =D22-E22 -> 0
A23: B. Magisterio | B23: 0.00 | C23: 0.00 | D23: 0.00 | E23: 0.00 | F23: 0.00 | G23: =D23-E23 -> 0
A24: C. Servicios de Salud (C=c1+c2) | B24: =B25+B26 -> 0.00 | C24: 0.00 | D24: 0.00 | E24: 0.00 | F24: 0.00 | G24: 0
A25: c1) Personal Administrativo | B25: 0.00 | C25: 0.00 | D25: 0.00 | E25: 0.00 | F25: 0.00 | G25: =D25-E25 -> 0
A26: c2) Personal Médico, paramédico y afín | B26: 0.00 | C26: 0.00 | D26: 0.00 | E26: 0.00 | F26: 0.00 | G26: =D26-E26 -> 0
A27: D. Seguridad Pública | B27: 0.00 | C27: 0.00 | D27: 0.00 | E27: 0.00 | F27: 0.00 | G27: =D27-E27 -> 0
A28: E. Gastos asociados a la implementación de nuevas leyes federales o reformas a las mismas (E=e1+e2) | B28: =B29+B30 -> 0.00 | C28: 0.00 | D28: 0.00 | E28: 0.00 | F28: 0.00 | G28: 0
A29: e1) Nombre del Programa o Ley 1 | B29: 0.00 | C29: 0.00 | D29: 0.00 | E29: 0.00 | F29: 0.00 | G29: =D29-E29 -> 0
A30: e2) Nombre del Programa o Ley 2 | B30: 0.00 | C30: 0.00 | D30: 0.00 | E30: 0.00 | F30: 0.00 | G30: =D30-E30 -> 0
A31: F. Sentencias laborales definitivas | B31: 0.00 | C31: 0.00 | D31: 0.00 | E31: 0.00 | F31: 0.00 | G31: =D31-E31 -> 0
A33: III. Total del Gasto en Servicios Personales (III = I + II) | B33: =B21+B9 -> 36,356,087.32 | C33: 30,000.00 | D33: 36,386,087.32 | E33: 23,741,159.93 | F33: 23,613,870.32 | G33: 12,644,927.39

Sheet Formato 7 a)
A1: Formato 7 a) Proyecciones de Ingresos - LDF
A2: NOMBRE DEL ENTE PÚBLICO (a)
A3: Proyecciones de Ingresos - LDF
A4: (PESOS)
A5: (CIFRAS NOMINALES)
A6: Concepto ( b ) | B6: Año en Cuestión (de iniciativa de Ley) (c) | C6: Año 1 (d) | D6: Año 2 (d) | E6: Año 3 (d) | F6: Año 4 (d) | G6: Año 5 (d)
A7: 1. Ingresos de Libre Disposición (1=A+B+C+D+E+F+G+H+I+J+K+L) | B7: =SUM(B8:B19) -> 0.00 | C7: 0.00 | D7: 0.00 | E7: 0.00 | F7: 0.00 | G7: 0.00
A8: A. Impuestos | B8: 0.00 | C8: 0.00 | D8: 0.00 | E8: 0.00 | F8: 0.00 | G8: 0.00
A9: B. Cuotas y Aportaciones de Seguridad Social | B9: 0.00 | C9: 0.00 | D9: 0.00 | E9: 0.00 | F9: 0.00 | G9: 0.00
A10: C. Contribuciones de Mejoras | B10: 0.00 | C10: 0.00 | D10: 0.00 | E10: 0.00 | F10: 0.00 | G10: 0.00
A11: D. Derechos | B11: 0.00 | C11: 0.00 | D11: 0.00 | E11: 0.00 | F11: 0.00 | G11: 0.00
A12: E. Productos | B12: 0.00 | C12: 0.00 | D12: 0.00 | E12: 0.00 | F12: 0.00 | G12: 0.00
A13: F. Aprovechamientos | B13: 0.00 | C13: 0.00 | D13: 0.00 | E13: 0.00 | F13: 0.00 | G13: 0.00
A14: G. Ingresos por Venta de Bienes y Prestación de Servicios | B14: 0.00 | C14: 0.00 | D14: 0.00 | E14: 0.00 | F14: 0.00 | G14: 0.00
A15: H. Participaciones | B15: 0.00 | C15: 0.00 | D15: 0.00 | E15: 0.00 | F15: 0.00 | G15: 0.00
A16: I. Incentivos Derivados de la Colaboración Fiscal | B16: 0.00 | C16: 0.00 | D16: 0.00 | E16: 0.00 | F16: 0.00 | G16: 0.00
A17: J. Transferencias y Asignaciones | B17: 0.00 | C17: 0.00 | D17: 0.00 | E17: 0.00 | F17: 0.00 | G17: 0.00
A18: K. Convenios | B18: 0.00 | C18: 0.00 | D18: 0.00 | E18: 0.00 | F18: 0.00 | G18: 0.00
A19: L. Otros Ingresos de Libre Disposición | B19: 0.00 | C19: 0.00 | D19: 0.00 | E19: 0.00 | F19: 0.00 | G19: 0.00
A21: 2. Transferencias Federales Etiquetadas (2=A+B+C+D+E) | B21: =SUM(B22:B26) -> 0.00 | C21: 0.00 | D21: 0.00 | E21: 0.00 | F21: 0.00 | G21: 0.00
A22: A. Aportaciones | B22: 0.00 | C22: 0.00 | D22: 0.00 | E22: 0.00 | F22: 0.00 | G22: 0.00
A23: B. Convenios | B23: 0.00 | C23: 0.00 | D23: 0.00 | E23: 0.00 | F23: 0.00 | G23: 0.00
A24: C. Fondos Distintos de Aportaciones | B24: 0.00 | C24: 0.00 | D24: 0.00 | E24: 0.00 | F24: 0.00 | G24: 0.00
A25: D. Transferencias, Asignaciones, Subsidios y Subvenciones, y Pensiones y Jubilaciones | B25: 0.00 | C25: 0.00 | D25: 0.00 | E25: 0.00 | F25: 0.00 | G25: 0.00
A26: E. Otras Transferencias Federales Etiquetadas | B26: 0.00 | C26: 0.00 | D26: 0.00 | E26: 0.00 | F26: 0.00 | G26: 0.00
A28: 3. Ingresos Derivados de Financiamientos (3=A) | B28: =SUM(B29) -> 0.00 | C28: 0.00 | D28: 0.00 | E28: 0.00 | F28: 0.00 | G28: 0.00
A29: A. Ingresos Derivados de Financiamientos | B29: 0.00 | C29: 0.00 | D29: 0.00 | E29: 0.00 | F29: 0.00 | G29: 0.00
A31: 4. Total de Ingresos Proyectados (4=1+2+3) | B31: =B21+B7+B28 -> 0.00 | C31: 0.00 | D31: 0.00 | E31: 0.00 | F31: 0.00 | G31: 0.00
A33: Datos Informativos
A34: 1. Ingresos Derivados de Financiamientos con Fuente de Pago de Recursos de Libre Disposición | B34: 0.00 | C34: 0.00 | D34: 0.00 | E34: 0.00 | F34: 0.00 | G34: 0.00
A35: 2. Ingresos Derivados de Financiamientos con Fuente de Pago de Transferencias Federales Etiquetadas | B35: 0.00 | C35: 0.00 | D35: 0.00 | E35: 0.00 | F35: 0.00 | G35: 0.00
A36: 3. Ingresos Derivados de Financiamiento (3 = 1 + 2) | B36: 0.00 | C36: 0.00 | D36: 0.00 | E36: 0.00 | F36: 0.00 | G36: 0.00

Sheet Formato 7 b)
A1: Formato 7 b) Proyecciones de Egresos - LDF
A2: JUNTA MUNICIPAL DE AGUA POTABLE Y SANEAMIENTO DE SAN LUIS DE LA PAZ
A3: Proyecciones de Egresos - LDF
A4: (PESOS)
A5: (CIFRAS NOMINALES)
A6: Concepto ( b ) | B6: Año en Cuestión (de iniciativa de Ley) (c) | C6: Año 1 (d) | D6: Año 2 (d) | E6: Año 3 (d) | F6: Año 4 (d) | G6: Año 5 (d)
A7: 1. Gasto No Etiquetado (1=A+B+C+D+E+F+G+H+I) | B7: =SUM(B8:B16) -> 0.00 | C7: 0.00 | D7: 0.00 | E7: 0.00 | F7: 0.00 | G7: 0.00
A8: A. Servicios Personales | B8: 0.00 | C8: 0.00 | D8: 0.00 | E8: 0.00 | F8: 0.00 | G8: 0.00
A9: B. Materiales y Suministros | B9: 0.00 | C9: 0.00 | D9: 0.00 | E9: 0.00 | F9: 0.00 | G9: 0.00
A10: C. Servicios Generales | B10: 0.00 | C10: 0.00 | D10: 0.00 | E10: 0.00 | F10: 0.00 | G10: 0.00
A11: D. Transferencias, Asignaciones, Subsidios y Otras Ayudas | B11: 0.00 | C11: 0.00 | D11: 0.00 | E11: 0.00 | F11: 0.00 | G11: 0.00
A12: E. Bienes Muebles, Inmuebles e Intangibles | B12: 0.00 | C12: 0.00 | D12: 0.00 | E12: 0.00 | F12: 0.00 | G12: 0.00
A13: F. Inversión Pública | B13: 0.00 | C13: 0.00 | D13: 0.00 | E13: 0.00 | F13: 0.00 | G13: 0.00
A14: G. Inversiones Financieras y Otras Provisiones | B14: 0.00 | C14: 0.00 | D14: 0.00 | E14: 0.00 | F14: 0.00 | G14: 0.00
A15: H. Participaciones y Aportaciones | B15: 0.00 | C15: 0.00 | D15: 0.00 | E15: 0.00 | F15: 0.00 | G15: 0.00
A16: I. Deuda Pública | B16: 0.00 | C16: 0.00 | D16: 0.00 | E16: 0.00 | F16: 0.00 | G16: 0.00
A18: 2. Gasto Etiquetado (2=A+B+C+D+E+F+G+H+I) | B18: =SUM(B19:B27) -> 0.00 | C18: 0.00 | D18: 0.00 | E18: 0.00 | F18: 0.00 | G18: 0.00
A19: A. Servicios Personales | B19: 0.00 | C19: 0.00 | D19: 0.00 | E19: 0.00 | F19: 0.00 | G19: 0.00
A20: B. Materiales y Suministros | B20: 0.00 | C20: 0.00 | D20: 0.00 | E20: 0.00 | F20: 0.00 | G20: 0.00
A21: C. Servicios Generales | B21: 0.00 | C21: 0.00 | D21: 0.00 | E21: 0.00 | F21: 0.00 | G21: 0.00
A22: D. Transferencias, Asignaciones, Subsidios y Otras Ayudas | B22: 0.00 | C22: 0.00 | D22: 0.00 | E22: 0.00 | F22: 0.00 | G22: 0.00
A23: E. Bienes Muebles, Inmuebles e Intangibles | B23: 0.00 | C23: 0.00 | D23: 0.00 | E23: 0.00 | F23: 0.00 | G23: 0.00
A24: F. Inversión Pública | B24: 0.00 | C24: 0.00 | D24: 0.00 | E24: 0.00 | F24: 0.00 | G24: 0.00
A25: G. Inversiones Financieras y Otras Provisiones | B25: 0.00 | C25: 0.00 | D25: 0.00 | E25: 0.00 | F25: 0.00 | G25: 0.00
A26: H. Participaciones y Aportaciones | B26: 0.00 | C26: 0.00 | D26: 0.00 | E26: 0.00 | F26: 0.00 | G26: 0.00
A27: I. Deuda Pública | B27: 0.00 | C27: 0.00 | D27: 0.00 | E27: 0.00 | F27: 0.00 | G27: 0.00
A29: 3. Total de Egresos Proyectados (3 = 1 + 2) | B29: =B18+B7 -> 0.00 | C29: 0.00 | D29: 0.00 | E29: 0.00 | F29: 0.00 | G29: 0.00

Sheet Formato 7 c)
A1: Formato 7 c) Resultados de Ingresos - LDF
A2: JUNTA MUNICIPAL DE AGUA POTABLE Y SANEAMIENTO DE SAN LUIS DE LA PAZ
A3: Resultados de Ingresos - LDF
A4: (PESOS)
A5: Concepto (b) | B5: Año 5 1 (c) | C5: Año 4 1 (c) | D5: Año 3 1 (c) | E5: Año 2 1 (c) | F5: Año 1 1 (c) | G5: Año del Ejercicio Vigente 2 (d)
A6: 1. Ingresos de Libre Disposición (1=A+B+C+D+E+F+G+H+I+J+K+L) | B6: =SUM(B7:B18) -> 0.00 | C6: 0.00 | D6: 0.00 | E6: 0.00 | F6: 0.00 | G6: 0.00
A7: A. Impuestos | B7: 0.00 | C7: 0.00 | D7: 0.00 | E7: 0.00 | F7: 0.00 | G7: 0.00
A8: B. Cuotas y Aportaciones de Seguridad Social | B8: 0.00 | C8: 0.00 | D8: 0.00 | E8: 0.00 | F8: 0.00 | G8: 0.00
A9: C. Contribuciones de Mejoras | B9: 0.00 | C9: 0.00 | D9: 0.00 | E9: 0.00 | F9: 0.00 | G9: 0.00
A10: D. Derechos | B10: 0.00 | C10: 0.00 | D10: 0.00 | E10: 0.00 | F10: 0.00 | G10: 0.00
A11: E. Productos | B11: 0.00 | C11: 0.00 | D11: 0.00 | E11: 0.00 | F11: 0.00 | G11: 0.00
A12: F. Aprovechamientos | B12: 0.00 | C12: 0.00 | D12: 0.00 | E12: 0.00 | F12: 0.00 | G12: 0.00
A13: G. Ingresos por Venta de Bienes y Prestación de Servicios | B13: 0.00 | C13: 0.00 | D13: 0.00 | E13: 0.00 | F13: 0.00 | G13: 0.00
A14: H. Participaciones | B14: 0.00 | C14: 0.00 | D14: 0.00 | E14: 0.00 | F14: 0.00 | G14: 0.00
A15: I. Incentivos Derivados de la Colaboración Fiscal | B15: 0.00 | C15: 0.00 | D15: 0.00 | E15: 0.00 | F15: 0.00 | G15: 0.00
A16: J. Transferencias y Asignaciones | B16: 0.00 | C16: 0.00 | D16: 0.00 | E16: 0.00 | F16: 0.00 | G16: 0.00
A17: K. Convenios | B17: 0.00 | C17: 0.00 | D17: 0.00 | E17: 0.00 | F17: 0.00 | G17: 0.00
A18: L. Otros Ingresos de Libre Disposición | B18: 0.00 | C18: 0.00 | D18: 0.00 | E18: 0.00 | F18: 0.00 | G18: 0.00
A20: 2. Transferencias Federales Etiquetadas (2=A+B+C+D+E) | B20: =SUM(B21:B25) -> 0.00 | C20: 0.00 | D20: 0.00 | E20: 0.00 | F20: 0.00 | G20: 0.00
A21: A. Aportaciones | B21: 0.00 | C21: 0.00 | D21: 0.00 | E21: 0.00 | F21: 0.00 | G21: 0.00
A22: B. Convenios | B22: 0.00 | C22: 0.00 | D22: 0.00 | E22: 0.00 | F22: 0.00 | G22: 0.00
A23: C. Fondos Distintos de Aportaciones | B23: 0.00 | C23: 0.00 | D23: 0.00 | E23: 0.00 | F23: 0.00 | G23: 0.00
A24: D. Transferencias, Asignaciones, Subsidios y Subvenciones, y Pensiones y Jubilaciones | B24: 0.00 | C24: 0.00 | D24: 0.00 | E24: 0.00 | F24: 0.00 | G24: 0.00
A25: E. Otras Transferencias Federales Etiquetadas | B25: 0.00 | C25: 0.00 | D25: 0.00 | E25: 0.00 | F25: 0.00 | G25: 0.00
A27: 3. Ingresos Derivados de Financiamientos (3=A) | B27: =SUM(B28) -> 0.00 | C27: 0.00 | D27: 0.00 | E27: 0.00 | F27: 0.00 | G27: 0.00
A28: A. Ingresos Derivados de Financiamientos | B28: 0.00 | C28: 0.00 | D28: 0.00 | E28: 0.00 | F28: 0.00 | G28: 0.00
A30: 4. Total de Resultados de Ingresos (4=1+2+3) | B30: =B20+B6+B27 -> 0.00 | C30: 0.00 | D30: 0.00 | E30: 0.00 | F30: 0.00 | G30: 0.00
A32: Datos Informativos
A33: 1. Ingresos Derivados de Financiamientos con Fuente de Pago de Recursos de Libre Disposición | B33: 0.00 | C33: 0.00 | D33: 0.00 | E33: 0.00 | F33: 0.00 | G33: 0.00
A34: 2. Ingresos Derivados de Financiamientos con Fuente de Pago de Transferencias Federales Etiquetadas | B34: 0.00 | C34: 0.00 | D34: 0.00 | E34: 0.00 | F34: 0.00 | G34: 0.00
A35: 3. Ingresos Derivados de Financiamiento (3 = 1 + 2) | B35: 0.00 | C35: 0.00 | D35: 0.00 | E35: 0.00 | F35: 0.00 | G35: 0.00
A38: 1. Los importes corresponden al momento contable de los ingresos devengados.
A39: 2. Los importes corresponden a los ingresos devengados al cierre trimestral más reciente disponible y estimados para el resto del ejercicio.

Sheet Formato 8
A1: Formato 7 d) Resultados de Egresos - LDF
A2: JUNTA MUNICIPAL DE AGUA POTABLE Y SANEAMIENTO DE SAN LUIS DE LA PAZ
A3: Resultados de Egresos - LDF
A4: (PESOS)
A5: Concepto (b) | B5: Año 5 1 (c) | C5: Año 4 1 (c) | D5: Año 3 1 (c) | E5: Año 2 1 (c) | F5: Año 1 1 (c) | G5: Año del Ejercicio Vigente 2 (d)
A6: 1. Gasto No Etiquetado (1=A+B+C+D+E+F+G+H+I) | B6: =SUM(B7:B15) -> 0.00 | C6: 0.00 | D6: 0.00 | E6: 0.00 | F6: 0.00 | G6: 0.00
A7: A. Servicios Personales | B7: 0.00 | C7: 0.00 | D7: 0.00 | E7: 0.00 | F7: 0.00 | G7: 0.00
A8: B. Materiales y Suministros | B8: 0.00 | C8: 0.00 | D8: 0.00 | E8: 0.00 | F8: 0.00 | G8: 0.00
A9: C. Servicios Generales | B9: 0.00 | C9: 0.00 | D9: 0.00 | E9: 0.00 | F9: 0.00 | G9: 0.00
A10: D. Transferencias, Asignaciones, Subsidios y Otras Ayudas | B10: 0.00 | C10: 0.00 | D10: 0.00 | E10: 0.00 | F10: 0.00 | G10: 0.00
A11: E. Bienes Muebles, Inmuebles e Intangibles | B11: 0.00 | C11: 0.00 | D11: 0.00 | E11: 0.00 | F11: 0.00 | G11: 0.00
A12: F. Inversión Pública | B12: 0.00 | C12: 0.00 | D12: 0.00 | E12: 0.00 | F12: 0.00 | G12: 0.00
A13: G. Inversiones Financieras y Otras Provisiones | B13: 0.00 | C13: 0.00 | D13: 0.00 | E13: 0.00 | F13: 0.00 | G13: 0.00
A14: H. Participaciones y Aportaciones | B14: 0.00 | C14: 0.00 | D14: 0.00 | E14: 0.00 | F14: 0.00 | G14: 0.00
A15: I. Deuda Pública | B15: 0.00 | C15: 0.00 | D15: 0.00 | E15: 0.00 | F15: 0.00 | G15: 0.00
A17: 2. Gasto Etiquetado (2=A+B+C+D+E+F+G+H+I) | B17: =SUM(B18:B26) -> 0.00 | C17: 0.00 | D17: 0.00 | E17: 0.00 | F17: 0.00 | G17: 0.00
A18: A. Servicios Personales | B18: 0.00 | C18: 0.00 | D18: 0.00 | E18: 0.00 | F18: 0.00 | G18: 0.00
A19: B. Materiales y Suministros | B19: 0.00 | C19: 0.00 | D19: 0.00 | E19: 0.00 | F19: 0.00 | G19: 0.00
A20: C. Servicios Generales | B20: 0.00 | C20: 0.00 | D20: 0.00 | E20: 0.00 | F20: 0.00 | G20: 0.00
A21: D. Transferencias, Asignaciones, Subsidios y Otras Ayudas | B21: 0.00 | C21: 0.00 | D21: 0.00 | E21: 0.00 | F21: 0.00 | G21: 0.00
A22: E. Bienes Muebles, Inmuebles e Intangibles | B22: 0.00 | C22: 0.00 | D22: 0.00 | E22: 0.00 | F22: 0.00 | G22: 0.00
A23: F. Inversión Pública | B23: 0.00 | C23: 0.00 | D23: 0.00 | E23: 0.00 | F23: 0.00 | G23: 0.00
A24: G. Inversiones Financieras y Otras Provisiones | B24: 0.00 | C24: 0.00 | D24: 0.00 | E24: 0.00 | F24: 0.00 | G24: 0.00
A25: H. Participaciones y Aportaciones | B25: 0.00 | C25: 0.00 | D25: 0.00 | E25: 0.00 | F25: 0.00 | G25: 0.00
A26: I. Deuda Pública | B26: 0.00 | C26: 0.00 | D26: 0.00 | E26: 0.00 | F26: 0.00 | G26: 0.00
A28: 3. Total de Egresos Proyectados (3 = 1 + 2) | B28: =B17+B6 -> 0.00 | C28: 0.00 | D28: 0.00 | E28: 0.00 | F28: 0.00 | G28: 0.00
A31: 1. Los importes corresponden a los egresos totales devengados.
A32: 2. Los importes corresponden a los egresos devengados al cierre trimestral más reciente disponible y estimados para el resto del ejercicio.

Sheet 7a (hidden)
A1: Formato 7 a) Proyecciones de Ingresos - LDF
A2: JUNTA MUNICIPAL DE AGUA POTABLE Y SANEAMIENTO DE SAN LUIS DE LA PAZ
A3: Proyecciones de Ingresos - LDF
A4: (PESOS)
A5: (CIFRAS NOMINALES)
A6: Concepto (b) | B6: 2022 | C6: =+B6+1 -> 2023 | D6: =+C6+1 -> 2024 | E6: =+D6+1 -> 2025 | F6: =+E6+1 -> 2026 | G6: =+F6+1 -> 2027
B7: Año en Cuestión (de proyecto de presupuesto) (c)
A8: 1. Ingresos de Libre Disposición (1=A+B+C+D+E+F+G+H+I+J+K+L) | B8: =SUM(B9:B20) -> 0 | C8: 0 | D8: 0 | E8: 0 | F8: 0 | G8: 0
A9: A. Impuestos | B9: 0 | C9: 0 | D9: 0 | E9: 0 | F9: 0 | G9: 0
A10: B. Cuotas y Aportaciones de Seguridad Social | B10: 0 | C10: 0 | D10: 0 | E10: 0 | F10: 0 | G10: 0
A11: C. Contribuciones de Mejoras | B11: 0 | C11: 0 | D11: 0 | E11: 0 | F11: 0 | G11: 0
A12: D. Derechos | B12: 0 | C12: 0 | D12: 0 | E12: 0 | F12: 0 | G12: 0
A13: E. Productos | B13: 0 | C13: 0 | D13: 0 | E13: 0 | F13: 0 | G13: 0
A14: F. Aprovechamientos | B14: 0 | C14: 0 | D14: 0 | E14: 0 | F14: 0 | G14: 0
A15: G. Ingresos por ventas de Bienes y Prestación de Servicios | B15: 0 | C15: 0 | D15: 0 | E15: 0 | F15: 0 | G15: 0
A16: H. Participaciones | B16: 0 | C16: 0 | D16: 0 | E16: 0 | F16: 0 | G16: 0
A17: I. Incentivos Derivados de la Colaboración Fiscal | B17: 0 | C17: 0 | D17: 0 | E17: 0 | F17: 0 | G17: 0
A18: J. Transferencias y Asignaciones | B18: 0 | C18: 0 | D18: 0 | E18: 0 | F18: 0 | G18: 0
A19: K. Convenios | B19: 0 | C19: 0 | D19: 0 | E19: 0 | F19: 0 | G19: 0
A20: L. Otros Ingresos de Libre Disposición | B20: 0 | C20: 0 | D20: 0 | E20: 0 | F20: 0 | G20: 0
A22: 2. Transferencias Federales Etiquetadas (2=A+B+C+D+E) | B22: =SUM(B23:B27) -> 0 | C22: 0 | D22: 0 | E22: 0 | F22: 0 | G22: 0
A23: A. Aportaciones | B23: 0 | C23: 0 | D23: 0 | E23: 0 | F23: 0 | G23: 0
A24: B. Convenios | B24: 0 | C24: 0 | D24: 0 | E24: 0 | F24: 0 | G24: 0
A25: C. Fondos Distintos de Aportaciones | B25: 0 | C25: 0 | D25: 0 | E25: 0 | F25: 0 | G25: 0
A26: D. Transferencias, Asignaciones, Subsidios y Subvenciones, y Pensiones y Jubilaciones | B26: 0 | C26: 0 | D26: 0 | E26: 0 | F26: 0 | G26: 0
A27: E. Otras Transferencias Federales Etiquetadas | B27: 0 | C27: 0 | D27: 0 | E27: 0 | F27: 0 | G27: 0
A29: 3. Ingresos Derivados de Financiamientos (3=A) | B29: =B30 -> 0 | C29: 0 | D29: 0 | E29: 0 | F29: 0 | G29: 0
A30: A. Ingresos Derivados de Financiamientos | B30: 0 | C30: 0 | D30: 0 | E30: 0 | F30: 0 | G30: 0
A32: 4. Total de Ingresos Proyectados (4=1+2+3) | B32: =B29+B22+B8 -> 0 | C32: 0 | D32: 0 | E32: 0 | F32: 0 | G32: 0
A34: Datos Informativos
A35: 1. Ingresos Derivados de Financiamientos con Fuente de Pago de Recursos de Libre Disposición | B35: 0 | C35: 0 | D35: 0 | E35: 0 | F35: 0 | G35: 0
A36: 2. Ingresos Derivados de Financiamientos con Fuente de Pago de Transferencias Federales Etiquetadas | B36: 0 | C36: 0 | D36: 0 | E36: 0 | F36: 0 | G36: 0
A37: 3. Ingresos Derivados de Financiamientos (3= 1 + 2) | B37: =B36+B35 -> 0 | C37: 0 | D37: 0 | E37: 0 | F37: 0 | G37: 0

Sheet 7b (hidden)
A1: Formato 7 b) Proyecciones de Egresos - LDF
A2: JUNTA MUNICIPAL DE AGUA POTABLE Y SANEAMIENTO DE SAN LUIS DE LA PAZ
A3: Proyecciones de Egresos - LDF
A4: (PESOS)
A5: (CIFRAS NOMINALES)
A6: Concepto (b) | B6: 2022 | C6: =+B6+1 -> 2023 | D6: =+C6+1 -> 2024 | E6: =+D6+1 -> 2025 | F6: =+E6+1 -> 2026 | G6: =+F6+1 -> 2027
B7: Año en Cuestión (de proyecto de presupuesto) (c)
A8: 1. Gasto No Etiquetado (1=A+B+C+D+E+F+G+H+I) | B8: =SUM(B9:B17) -> 0 | C8: 0 | D8: 0 | E8: 0 | F8: 0 | G8: 0
A9: A. Servicios Personales | B9: 0 | C9: 0 | D9: 0 | E9: 0 | F9: 0 | G9: 0
A10: B. Materiales y Suministros | B10: 0 | C10: 0 | D10: 0 | E10: 0 | F10: 0 | G10: 0
A11: C. Servicios Generales | B11: 0 | D11: 0 | E11: 0 | F11: 0 | G11: 0
A12: D. Transferencias, Asignaciones, Subsidios y Otras Ayudas | B12: 0 | C12: 0 | D12: 0 | E12: 0 | F12: 0 | G12: 0
A13: E. Bienes Muebles, Inmuebles e Intangibles | B13: 0 | C13: 0 | D13: 0 | E13: 0 | F13: 0 | G13: 0
A14: F. Inversión Pública | B14: 0 | C14: 0 | D14: 0 | E14: 0 | F14: 0 | G14: 0
A15: G. Inversiones Financieras y Otras Provisiones | B15: 0 | C15: 0 | D15: 0 | E15: 0 | F15: 0 | G15: 0
A16: H. Participaciones y Aportaciones | B16: 0 | C16: 0 | D16: 0 | E16: 0 | F16: 0 | G16: 0
A17: I. Deuda Pública | B17: 0 | C17: 0 | D17: 0 | E17: 0 | F17: 0 | G17: 0
A19: 2. Gasto Etiquetado (2=A+B+C+D+E+F+G+H+I) | B19: =SUM(B20:B28) -> 0 | C19: 0 | D19: 0 | E19: 0 | F19: 0 | G19: 0
A20: A. Servicios Personales | B20: 0 | C20: 0 | D20: 0 | E20: 0 | F20: 0 | G20: 0
A21: B. Materiales y Suministros | B21: 0 | C21: 0 | D21: 0 | E21: 0 | F21: 0 | G21: 0
A22: C. Servicios Generales | B22: 0 | C22: 0 | D22: 0 | E22: 0 | F22: 0 | G22: 0
A23: D. Transferencias, Asignaciones, Subsidios y Otras Ayudas | B23: 0 | C23: 0 | D23: 0 | E23: 0 | F23: 0 | G23: 0
A24: E. Bienes Muebles, Inmuebles e Intangibles | B24: 0 | C24: 0 | D24: 0 | E24: 0 | F24: 0 | G24: 0
A25: F. Inversión Pública | B25: 0 | C25: 0 | D25: 0 | E25: 0 | F25: 0 | G25: 0
A26: G. Inversiones Financieras y Otras Provisiones | B26: 0 | C26: 0 | D26: 0 | E26: 0 | F26: 0 | G26: 0
A27: H. Participaciones y Aportaciones | B27: 0 | C27: 0 | D27: 0 | E27: 0 | F27: 0 | G27: 0
A28: I. Deuda Pública | B28: 0 | C28: 0 | D28: 0 | E28: 0 | F28: 0 | G28: 0
A30: 3. Total de Egresos Proyectados (3 = 1 + 2) | B30: =B8+B19 -> 0 | C30: 0 | D30: 0 | E30: 0 | F30: 0 | G30: 0

Sheet 7c (hidden)
A1: Formato 7 c) Resultados de Ingresos - LDF
A2: JUNTA MUNICIPAL DE AGUA POTABLE Y SANEAMIENTO DE SAN LUIS DE LA PAZ
A3: Resultados de Ingresos - LDF
A4: (PESOS)
A5: Concepto (b) | B5: 2017 | C5: =+B5+1 -> 2018 | D5: =+C5+1 -> 2019 | E5: =+D5+1 -> 2020 | F5: =+E5+1 -> 2021 | G5: =+F5+1 -> 2022
G6: Año del Ejercicio Vigente 2 (d)
A7: 1. Ingresos de Libre Disposición (1=A+B+C+D+E+F+G+H+I+J+K+L) | B7: =SUM(B9:B19) -> 0 | C7: =SUM(C8:C19) -> 0 | D7: =SUM(D8:D19) -> 0 | E7: =SUM(E8:E19) -> 0 | F7: =SUM(F8:F19) -> 0 | G7: =SUM(G8:G19) -> 0
A8: A. Impuestos | B8: 0 | C8: 0 | D8: 0 | E8: 0 | F8: 0 | G8: 0
A9: B. Cuotas y Aportaciones de Seguridad Social | B9: 0 | C9: 0 | D9: 0 | E9: 0 | F9: 0 | G9: 0
A10: C. Contribuciones de Mejoras | B10: 0 | C10: 0 | D10: 0 | E10: 0 | F10: 0 | G10: 0
A11: D. Derechos | B11: 0 | C11: 0 | D11: 0 | E11: 0 | F11: 0 | G11: 0
A12: E. Productos | B12: 0 | C12: 0 | D12: 0 | E12: 0 | F12: 0 | G12: 0
A13: F. Aprovechamientos | B13: 0 | C13: 0 | D13: 0 | E13: 0 | F13: 0 | G13: 0
A14: G. Ingresos por Venta de Bienes y Prestación de Servicios | B14: 0 | C14: 0 | D14: 0 | E14: 0 | F14: 0 | G14: 0
A15: H. Participaciones | B15: 0 | C15: 0 | D15: 0 | E15: 0 | F15: 0 | G15: 0
A16: I. Incentivos Derivados de la Colaboración Fiscal | B16: 0 | C16: 0 | D16: 0 | E16: 0 | F16: 0 | G16: 0
A17: J. Transferencias y Asignaciones | B17: 0 | C17: 0 | D17: 0 | E17: 0 | F17: 0 | G17: 0
A18: K. Convenios | B18: 0 | C18: 0 | D18: 0 | E18: 0 | F18: 0 | G18: 0
A19: L. Otros Ingresos de Libre Disposición | B19: 0 | C19: 0 | D19: 0 | E19: 0 | F19: 0 | G19: 0
A21: 2. Transferencias Federales Etiquetadas (2=A+B+C+D+E) | B21: =SUM(B22:B26) -> 0 | C21: 0 | D21: 0 | E21: 0 | F21: 0 | G21: 0
A22: A. Aportaciones | B22: 0 | C22: 0 | D22: 0 | E22: 0 | F22: 0 | G22: 0
A23: B. Convenios | B23: 0 | C23: 0 | D23: 0 | E23: 0 | F23: 0 | G23: 0
A24: C. Fondos Distintos de Aportaciones | B24: 0 | C24: 0 | D24: 0 | E24: 0 | F24: 0 | G24: 0
A25: D. Transferencias, Asignaciones, Subsidios y Subvenciones, y Pensiones y Jubilaciones | B25: 0 | C25: 0 | D25: 0 | E25: 0 | F25: 0 | G25: 0
A26: E. Otras Transferencias Federales Etiquetadas | B26: 0 | C26: 0 | D26: 0 | E26: 0 | F26: 0 | G26: 0
A28: 3. Ingresos Derivados de Financiamientos (3=A) | B28: =B29 -> 0 | C28: 0 | D28: 0 | E28: 0 | F28: 0 | G28: 0
A29: A. Ingresos Derivados de Financiamientos | B29: 0 | C29: 0 | D29: 0 | E29: 0 | F29: 0 | G29: 0
A31: 4. Total de Resultados de Ingresos (4=1+2+3) | B31: =B7+B21+B28 -> 0 | C31: 0 | D31: 0 | E31: 0 | F31: 0 | G31: 0
A33: Datos Informativos
A34: 1. Ingresos Derivados de Financiamientos con Fuente de Pago de Recursos de Libre Disposición | B34: 0 | C34: 0 | D34: 0 | E34: 0 | F34: 0 | G34: 0
A35: 2. Ingresos derivados de Financiamientos con Fuente de Pago de Transferencias Federales Etiquetadas | B35: 0 | C35: 0 | D35: 0 | E35: 0 | F35: 0 | G35: 0
A36: 3. Ingresos Derivados de Financiamiento (3 = 1 + 2) | B36: =B34+B35 -> 0 | C36: 0 | D36: 0 | E36: 0 | F36: 0 | G36: 0
A39: 1 Los importes corresponden al momento contable de los ingresos devengados.
A40: 2 Los importes corresponden a los ingresos devengados al cierre trimestral más reciente disponible y estimados para el resto del ejercicio.

Sheet 7d (hidden)
A1: Formato 7 d) Resultados de Egresos - LDF
A2: JUNTA MUNICIPAL DE AGUA POTABLE Y SANEAMIENTO DE SAN LUIS DE LA PAZ
A3: Resultados de Egresos - LDF
A4: (PESOS)
A5: Concepto (b) | B5: 2017 | C5: =+B5+1 -> 2018 | D5: =+C5+1 -> 2019 | E5: =+D5+1 -> 2020 | F5: =+E5+1 -> 2021 | G5: 2022
G6: Año del Ejercicio Vigente 2 (d)
A7: 1. Gasto No Etiquetado (1=A+B+C+D+E+F+G+H+I) | B7: =SUM(B8:B16) -> 0 | C7: 0 | D7: 0 | E7: 0 | F7: 0 | G7: 0
A8: A. Servicios Personales | B8: 0 | C8: 0 | D8: 0 | E8: 0 | F8: 0 | G8: 0
A9: B. Materiales y Suministros | B9: 0 | C9: 0 | D9: 0 | E9: 0 | F9: 0 | G9: 0
A10: C. Servicios Generales | B10: 0 | C10: 0 | D10: 0 | E10: 0 | F10: 0 | G10: 0
A11: D. Transferencias, Asignaciones, Subsidios y Otras Ayudas | B11: 0 | C11: 0 | D11: 0 | E11: 0 | F11: 0 | G11: 0
A12: E. Bienes Muebles, Inmuebles e Intangibles | B12: 0 | C12: 0 | D12: 0 | E12: 0 | F12: 0 | G12: 0
A13: F. Inversión Pública | B13: 0 | C13: 0 | D13: 0 | E13: 0 | F13: 0 | G13: 0
A14: G. Inversiones Financieras y Otras Provisiones | B14: 0 | C14: 0 | D14: 0 | E14: 0 | F14: 0 | G14: 0
A15: H. Participaciones y Aportaciones | B15: 0 | C15: 0 | D15: 0 | E15: 0 | F15: 0 | G15: 0
A16: I. Deuda Pública | B16: 0 | C16: 0 | D16: 0 | E16: 0 | F16: 0 | G16: 0
A18: 2. Gasto Etiquetado (2=A+B+C+D+E+F+G+H+I) | B18: =SUM(B19:B27) -> 0 | C18: 0 | D18: 0 | E18: 0 | F18: 0 | G18: 0
A19: A. Servicios Personales | B19: 0 | C19: 0 | D19: 0 | E19: 0 | F19: 0 | G19: 0
A20: B. Materiales y Suministros | B20: 0 | C20: 0 | D20: 0 | E20: 0 | F20: 0 | G20: 0
A21: C. Servicios Generales | B21: 0 | C21: 0 | D21: 0 | E21: 0 | F21: 0 | G21: 0
A22: D. Transferencias, Asignaciones, Subsidios y Otras Ayudas | B22: 0 | C22: 0 | D22: 0 | E22: 0 | F22: 0 | G22: 0
A23: E. Bienes Muebles, Inmuebles e Intangibles | B23: 0 | C23: 0 | D23: 0 | E23: 0 | F23: 0 | G23: 0
A24: F. Inversión Pública | B24: 0 | C24: 0 | D24: 0 | E24: 0 | F24: 0 | G24: 0
A25: G. Inversiones Financieras y Otras Provisiones | B25: 0 | C25: 0 | D25: 0 | E25: 0 | F25: 0 | G25: 0
A26: H. Participaciones y Aportaciones | B26: 0 | C26: 0 | D26: 0 | E26: 0 | F26: 0 | G26: 0
A27: I. Deuda Pública | B27: 0 | C27: 0 | D27: 0 | E27: 0 | F27: 0 | G27: 0
A29: 3. Total del Resultado de Egresos (3=1+2) | B29: =B7+B18 -> 0 | C29: 0 | D29: 0 | E29: 0 | F29: 0 | G29: 0
A32: 1 Los importes corresponden al momento contable de los ingresos devengados.
A33: 2 Los importes corresponden a los ingresos devengados al cierre trimestral más reciente disponible y estimados para el resto del ejercicio.

Sheet F8_IEA (hidden)
A1: Formato 8) Informe sobre Estudios Actuariales – LDF
A2: JUNTA MUNICIPAL DE AGUA POTABLE Y SANEAMIENTO DE SAN LUIS DE LA PAZ
A3: Informe sobre Estudios Actuariales - LDF
B4: Pensiones y jubilaciones | C4: Salud | D4: Riesgos de trabajo | E4: Invalidez y vida | F4: Otras prestaciones sociales
A5: Tipo de Sistema
A6: Prestación laboral o Fondo general para trabajadores del estado o municipio
A7: Beneficio definido, Contribución definida o Mixto
A9: Población afiliada
A10: Activos
A11: Edad máxima
A12: Edad mínima
A13: Edad promedio
A14: Pensionados y Jubilados
A15: Edad máxima
A16: Edad mínima
A17: Edad promedio
A18: Beneficiarios
A19: Promedio de años de servicio (trabajadores activos)
A20: Aportación individual al plan de pensión como % del salario
A21: Aportación del ente público al plan de pensión como % del salario
A22: Crecimiento esperado de los pensionados y jubilados (como %)
A23: Crecimiento esperado de los activos (como %)
A24: Edad de Jubilación o Pensión
A25: Esperanza de vida
A27: Ingresos del Fondo
A28: Ingresos Anuales al Fondo de Pensiones
A30: Nómina anual
A31: Activos
A32: Pensionados y Jubilados
A33: Beneficiarios de Pensionados y Jubilados
A35: Monto mensual por pensión
A36: Máximo
A37: Mínimo
A38: Promedio
A40: Monto de la reserva
A42: Valor presente de las obligaciones
A43: Pensiones y Jubilaciones en curso de pago
A44: Generación actual
A45: Generaciones futuras
A47: Valor presente de las contribuciones asociadas a los sueldos futuros de cotización X%
A48: Generación actual
A49: Generaciones futuras
A51: Valor presente de aportaciones futuras
A52: Generación actual
A53: Generaciones futuras
A54: Otros Ingresos
A56: Déficit/superávit actuarial
A57: Generación actual
A58: Generaciones futuras
A60: Periodo de suficiencia
A61: Año de descapitalización
A62: Tasa de rendimiento
A64: Estudio actuarial
A65: Año de elaboración del estudio actuarial
A66: Empresa que elaboró el estudio actuarial
